Department,Entity,Date of Payment,Expense Type,Expense Area,Supplier,Transaction Number,Amount,Description,Supplier Postcode
"Department for Business, Innovation and Skills",UK Shared Business Services Ltd,01/03/2023,Computer Software Licences,SHARP,Oracle Corporation UK Ltd,99895029,"53,655.66",Computer Consumables,BH7 7DA
"Department for Business, Innovation and Skills",UK Shared Business Services Ltd,01/03/2023,UK - Professional Memberships & Subscriptions,Production Services,PLURALSIGHT LLC,99901375,"3,779.35",Computer Consumables,60055-9719-USD
"Department for Business, Innovation and Skills",UK Shared Business Services Ltd,01/03/2023,UK - Professional Memberships & Subscriptions,Production Services,PLURALSIGHT LLC,99901375,"1,121.35",Computer Consumables,60055-9719-USD
"Department for Business, Innovation and Skills",UK Shared Business Services Ltd,01/03/2023,UK - Professional Memberships & Subscriptions,Production Services,PLURALSIGHT LLC,99901375,"1,868.91",Computer Consumables,60055-9719-USD
"Department for Business, Innovation and Skills",UK Shared Business Services Ltd,01/03/2023,UK - Professional Memberships & Subscriptions,Production Services,PLURALSIGHT LLC,99901375,747.56,Computer Consumables,60055-9719-USD
"Department for Business, Innovation and Skills",UK Shared Business Services Ltd,01/03/2023,UK - Professional Memberships & Subscriptions,Production Services,PLURALSIGHT LLC,99901375,"2,242.69",Computer Consumables,60055-9719-USD
"Department for Business, Innovation and Skills",UK Shared Business Services Ltd,01/03/2023,UK - Professional Memberships & Subscriptions,Production Services,PLURALSIGHT LLC,99901375,747.56,Computer Consumables,60055-9719-USD
"Department for Business, Innovation and Skills",UK Shared Business Services Ltd,01/03/2023,T&S - Vehicle Hire,Executive Function,Enterprise Rent-A-Car UK Ltd,99904822,172.06,,GL2 5DA
"Department for Business, Innovation and Skills",UK Shared Business Services Ltd,01/03/2023,T&S - Vehicle Hire,Executive Function,Enterprise Rent-A-Car UK Ltd,99904822,34.41,SR11541844 - CarHire,GL2 5DA
"Department for Business, Innovation and Skills",UK Shared Business Services Ltd,01/03/2023,Contract Staff,Procurement Policy & Strategy,Hays Specialist Recruitment Ltd,99904911,"1,201.75",Recruitment Services,KT3 4QF
"Department for Business, Innovation and Skills",UK Shared Business Services Ltd,01/03/2023,Contract Staff,Procurement Policy & Strategy,Hays Specialist Recruitment Ltd,99904914,"10,815.77",Recruitment Services,KT3 4QF
"Department for Business, Innovation and Skills",UK Shared Business Services Ltd,01/03/2023,Contract Staff,Procurement Policy & Strategy,Hays Specialist Recruitment Ltd,99904947,"3,154.38",Recruitment Services,KT3 4QF
"Department for Business, Innovation and Skills",UK Shared Business Services Ltd,01/03/2023,Contract Staff,Procurement Policy & Strategy,Hays Specialist Recruitment Ltd,99904949,"11,986.64",Recruitment Services,KT3 4QF
"Department for Business, Innovation and Skills",UK Shared Business Services Ltd,01/03/2023,Contract Staff,Procurement Policy & Strategy,Hays Specialist Recruitment Ltd,99904951,"13,879.27",Recruitment Services,KT3 4QF
"Department for Business, Innovation and Skills",UK Shared Business Services Ltd,01/03/2023,Contract Staff,Procurement Policy & Strategy,Hays Specialist Recruitment Ltd,99904953,"11,986.64",Recruitment Services,KT3 4QF
"Department for Business, Innovation and Skills",UK Shared Business Services Ltd,01/03/2023,Contract Staff,Procurement Policy & Strategy,Hays Specialist Recruitment Ltd,99904955,"13,248.40",Recruitment Services,KT3 4QF
"Department for Business, Innovation and Skills",UK Shared Business Services Ltd,01/03/2023,Contract Staff,Procurement Policy & Strategy,Hays Specialist Recruitment Ltd,99904961,"3,841.26",Recruitment Services,KT3 4QF
"Department for Business, Innovation and Skills",UK Shared Business Services Ltd,01/03/2023,Contract Staff,Procurement Policy & Strategy,Hays Specialist Recruitment Ltd,99904965,"16,133.29",Recruitment Services,KT3 4QF
"Department for Business, Innovation and Skills",UK Shared Business Services Ltd,01/03/2023,Contract Staff,Procurement Policy & Strategy,Hays Specialist Recruitment Ltd,99904966,"16,901.54",Recruitment Services,KT3 4QF
"Department for Business, Innovation and Skills",UK Shared Business Services Ltd,01/03/2023,Contract Staff,Procurement Policy & Strategy,Hays Specialist Recruitment Ltd,99904968,"8,834.90",Recruitment Services,KT3 4QF
"Department for Business, Innovation and Skills",UK Shared Business Services Ltd,01/03/2023,Contract Staff,Procurement Policy & Strategy,Hays Specialist Recruitment Ltd,99904975,"16,133.29",Recruitment Services,KT3 4QF
"Department for Business, Innovation and Skills",UK Shared Business Services Ltd,01/03/2023,Computer Software Licences,Production Services,FluidOne Ltd,99904981,"6,957.42",Computer Consumables,SE1 9PG
"Department for Business, Innovation and Skills",UK Shared Business Services Ltd,01/03/2023,Computer Software Licences,Production Services,FluidOne Ltd,99904981,"3,940.98",Computer Consumables,SE1 9PG
"Department for Business, Innovation and Skills",UK Shared Business Services Ltd,01/03/2023,Computer Software Licences,Production Services,FluidOne Ltd,99904981,"16,566.08",Computer Consumables,SE1 9PG
"Department for Business, Innovation and Skills",UK Shared Business Services Ltd,01/03/2023,Computer Software Licences,Production Services,FluidOne Ltd,99904981,"7,254.96",Computer Consumables,SE1 9PG
"Department for Business, Innovation and Skills",UK Shared Business Services Ltd,01/03/2023,Computer Software Licences,Production Services,FluidOne Ltd,99904981,"1,940.28",Computer Consumables,SE1 9PG
"Department for Business, Innovation and Skills",UK Shared Business Services Ltd,01/03/2023,Computer Software Licences,Production Services,FluidOne Ltd,99904981,"3,329.94",Computer Consumables,SE1 9PG
"Department for Business, Innovation and Skills",UK Shared Business Services Ltd,01/03/2023,Computer Software Licences,Production Services,FluidOne Ltd,99904981,"1,713.42",Computer Consumables,SE1 9PG
"Department for Business, Innovation and Skills",UK Shared Business Services Ltd,01/03/2023,Computer Software Licences,Production Services,FluidOne Ltd,99904981,"5,826.54",Computer Consumables,SE1 9PG
"Department for Business, Innovation and Skills",UK Shared Business Services Ltd,01/03/2023,Computer Software Licences,Production Services,FluidOne Ltd,99904981,"6,877.62",Computer Consumables,SE1 9PG
"Department for Business, Innovation and Skills",UK Shared Business Services Ltd,01/03/2023,Computer Software Licences,Production Services,FluidOne Ltd,99904981,865.26,Computer Consumables,SE1 9PG
"Department for Business, Innovation and Skills",UK Shared Business Services Ltd,01/03/2023,Recruitment Costs,Contact Centres,Hays Specialist Recruitment Ltd,99904988,"1,560.95",Recruitment Services,KT3 4QF
"Department for Business, Innovation and Skills",UK Shared Business Services Ltd,01/03/2023,Recruitment Costs,Contact Centres,Hays Specialist Recruitment Ltd,99904990,"2,723.76",Recruitment Services,KT3 4QF
"Department for Business, Innovation and Skills",UK Shared Business Services Ltd,01/03/2023,Recruitment Costs,Contact Centres,Hays Specialist Recruitment Ltd,99904992,"2,975.18",Recruitment Services,KT3 4QF
"Department for Business, Innovation and Skills",UK Shared Business Services Ltd,01/03/2023,Computer Software Licences,SHARP,Oracle Corporation UK Ltd,99904998,"13,500.00",Computer Consumables,BH7 7DA
"Department for Business, Innovation and Skills",UK Shared Business Services Ltd,01/03/2023,Computer Software Licences,SHARP,Oracle Corporation UK Ltd,99905699,"-53,655.66",Computer Consumables,BH7 7DA
"Department for Business, Innovation and Skills",UK Shared Business Services Ltd,01/03/2023,Computer Software Licences,SHARP,Oracle Corporation UK Ltd,99905700,"4,267.30",Computer Consumables,RG6 1RA
"Department for Business, Innovation and Skills",UK Shared Business Services Ltd,01/03/2023,Computer Software Licences,SHARP,Oracle Corporation UK Ltd,99905700,"2,378.21",Computer Consumables,RG6 1RA
"Department for Business, Innovation and Skills",UK Shared Business Services Ltd,01/03/2023,Computer Software Licences,SHARP,Oracle Corporation UK Ltd,99905700,"9,558.77",Computer Consumables,RG6 1RA
"Department for Business, Innovation and Skills",UK Shared Business Services Ltd,01/03/2023,Computer Software Licences,SHARP,Oracle Corporation UK Ltd,99905700,"2,048.30",Computer Consumables,RG6 1RA
"Department for Business, Innovation and Skills",UK Shared Business Services Ltd,01/03/2023,Computer Software Licences,SHARP,Oracle Corporation UK Ltd,99905700,"9,625.51",Computer Consumables,RG6 1RA
"Department for Business, Innovation and Skills",UK Shared Business Services Ltd,01/03/2023,Computer Software Licences,SHARP,Oracle Corporation UK Ltd,99905700,"9,625.51",Computer Consumables,RG6 1RA
"Department for Business, Innovation and Skills",UK Shared Business Services Ltd,01/03/2023,Computer Software Licences,SHARP,Oracle Corporation UK Ltd,99905700,"9,625.52",Computer Consumables,RG6 1RA
"Department for Business, Innovation and Skills",UK Shared Business Services Ltd,01/03/2023,Computer Software Licences,SHARP,Oracle Corporation UK Ltd,99905700,"2,048.30",Computer Consumables,RG6 1RA
"Department for Business, Innovation and Skills",UK Shared Business Services Ltd,01/03/2023,Computer Software Licences,SHARP,Oracle Corporation UK Ltd,99905700,"8,396.96",Computer Consumables,RG6 1RA
"Department for Business, Innovation and Skills",UK Shared Business Services Ltd,01/03/2023,Computer Software Licences,SHARP,Oracle Corporation UK Ltd,99905700,276.79,Computer Consumables,RG6 1RA
"Department for Business, Innovation and Skills",UK Shared Business Services Ltd,01/03/2023,Computer Software Licences,SHARP,Oracle Corporation UK Ltd,99905700,758.18,Computer Consumables,RG6 1RA
"Department for Business, Innovation and Skills",UK Shared Business Services Ltd,01/03/2023,Computer Software Licences,SHARP,Oracle Corporation UK Ltd,99905700,"4,267.30",Computer Consumables,RG6 1RA
"Department for Business, Innovation and Skills",UK Shared Business Services Ltd,01/03/2023,Computer Software Licences,SHARP,Oracle Corporation UK Ltd,99905700,"8,396.96",Computer Consumables,RG6 1RA
"Department for Business, Innovation and Skills",UK Shared Business Services Ltd,01/03/2023,Computer Software Licences,SHARP,Oracle Corporation UK Ltd,99905700,11.22,Computer Consumables,RG6 1RA
"Department for Business, Innovation and Skills",UK Shared Business Services Ltd,01/03/2023,Computer Software Licences,SHARP,Oracle Corporation UK Ltd,99905700,4.20,Computer Consumables,RG6 1RA
"Department for Business, Innovation and Skills",UK Shared Business Services Ltd,01/03/2023,Computer Software Licences,SHARP,Oracle Corporation UK Ltd,99905700,"5,038.16",Computer Consumables,RG6 1RA
"Department for Business, Innovation and Skills",UK Shared Business Services Ltd,01/03/2023,Computer Software Licences,SHARP,Oracle Corporation UK Ltd,99905700,"5,745.72",Computer Consumables,RG6 1RA
"Department for Business, Innovation and Skills",UK Shared Business Services Ltd,01/03/2023,Computer Software Licences,SHARP,Oracle Corporation UK Ltd,99905700,"2,389.68",Computer Consumables,RG6 1RA
"Department for Business, Innovation and Skills",UK Shared Business Services Ltd,01/03/2023,Computer Software Licences,SHARP,Oracle Corporation UK Ltd,99905700,"1,365.53",Computer Consumables,RG6 1RA
"Department for Business, Innovation and Skills",UK Shared Business Services Ltd,01/03/2023,Computer Software Licences,SHARP,Oracle Corporation UK Ltd,99905700,546.22,Computer Consumables,RG6 1RA
"Department for Business, Innovation and Skills",UK Shared Business Services Ltd,01/03/2023,Computer Software Licences,SHARP,Oracle Corporation UK Ltd,99905700,409.66,Computer Consumables,RG6 1RA
"Department for Business, Innovation and Skills",UK Shared Business Services Ltd,01/03/2023,Computer Software Licences,SHARP,Oracle Corporation UK Ltd,99905700,"8,534.62",Computer Consumables,RG6 1RA
"Department for Business, Innovation and Skills",UK Shared Business Services Ltd,01/03/2023,Computer Software Licences,SHARP,Oracle Corporation UK Ltd,99905700,"9,286.68",Computer Consumables,RG6 1RA
"Department for Business, Innovation and Skills",UK Shared Business Services Ltd,01/03/2023,Computer Software Licences,SHARP,Oracle Corporation UK Ltd,99905700,"2,258.78",Computer Consumables,RG6 1RA
"Department for Business, Innovation and Skills",UK Shared Business Services Ltd,01/03/2023,Legal & Professional Services,People,AM Health & Safety Ltd,99905863,150.00,Professional Services,SN5 6BD
"Department for Business, Innovation and Skills",UK Shared Business Services Ltd,02/03/2023,Agency Staff,Tier 1 BOE Transactions,Hays Specialist Recruitment Ltd,99905226,"1,215.22",Recruitment Services,KT3 4QF
"Department for Business, Innovation and Skills",UK Shared Business Services Ltd,02/03/2023,Agency Staff,Tier 1 BOE Transactions,Hays Specialist Recruitment Ltd,99905230,"2,786.62",Recruitment Services,KT3 4QF
"Department for Business, Innovation and Skills",UK Shared Business Services Ltd,02/03/2023,Contract Staff,Project Office,Hays Specialist Recruitment Ltd,99905242,"11,909.57",Recruitment Services,KT3 4QF
"Department for Business, Innovation and Skills",UK Shared Business Services Ltd,02/03/2023,Contract Staff,Project Office,Hays Specialist Recruitment Ltd,99905257,"8,120.16",Recruitment Services,KT3 4QF
"Department for Business, Innovation and Skills",UK Shared Business Services Ltd,02/03/2023,Contract Staff,Procurement Policy & Strategy,Hays Specialist Recruitment Ltd,99905270,"13,456.79",Recruitment Services,KT3 4QF
"Department for Business, Innovation and Skills",UK Shared Business Services Ltd,02/03/2023,Contract Staff,Procurement Policy & Strategy,Hays Specialist Recruitment Ltd,99905310,"8,875.44",Recruitment Services,KT3 4QF
"Department for Business, Innovation and Skills",UK Shared Business Services Ltd,02/03/2023,Agency Staff,Tier 1 BOE Transactions,Hays Specialist Recruitment Ltd,99905380,"2,357.10",Recruitment Services,KT3 4QF
"Department for Business, Innovation and Skills",UK Shared Business Services Ltd,02/03/2023,T&S - Mileage,Payroll,Unspecified,99905604,58.50,Mileage - Car (excl Home to Office),HOME
"Department for Business, Innovation and Skills",UK Shared Business Services Ltd,02/03/2023,Computer Software,SIAM,OSO Devops Ltd,99906232,"3,000.00",Computing Software,IG8 8HD
"Department for Business, Innovation and Skills",UK Shared Business Services Ltd,02/03/2023,Computer Software,SIAM,OSO Devops Ltd,99906232,78.97,Computing Software,IG8 8HD
"Department for Business, Innovation and Skills",UK Shared Business Services Ltd,02/03/2023,Computer Hardware,Production Services,Dell Corporation Ltd,99906438,"1,143.50",Computing Hardware,SWAREHOUSEONLY
"Department for Business, Innovation and Skills",UK Shared Business Services Ltd,02/03/2023,T&S - Mileage,SIAM,Unspecified,99906597,63.23,Mileage - Car (excl Home to Office),HOME
"Department for Business, Innovation and Skills",UK Shared Business Services Ltd,03/03/2023,T&S - Mileage,SIAM,Unspecified,99899443,27.00,Mileage - Car (excl Home to Office),HOME
"Department for Business, Innovation and Skills",UK Shared Business Services Ltd,03/03/2023,T&S - Other Charges,Contact Centres,Unspecified,99901570,30.45,Miscellaneous (Actuals),HOME
"Department for Business, Innovation and Skills",UK Shared Business Services Ltd,03/03/2023,T&S - Subsistence,Contact Centres,Unspecified,99901570,83.20,Evening Meal (Actuals),HOME
"Department for Business, Innovation and Skills",UK Shared Business Services Ltd,03/03/2023,T&S - Subsistence,Contact Centres,Unspecified,99901570,63.85,Lunch (Actuals),HOME
"Department for Business, Innovation and Skills",UK Shared Business Services Ltd,03/03/2023,T&S - Vehicle Hire,Contact Centres,Unspecified,99901570,116.69,Vehicle Hire/Rental/Fuel (Actuals),HOME
"Department for Business, Innovation and Skills",UK Shared Business Services Ltd,03/03/2023,3rd party IT Services,SHARP,IBM United Kingdom Ltd,99905668,"180,000.00",Computer Consumables,PO6 3AU
"Department for Business, Innovation and Skills",UK Shared Business Services Ltd,03/03/2023,3rd party IT Services,SHARP,IBM United Kingdom Ltd,99905668,"124,273.20",Computer Consumables,PO6 3AU
"Department for Business, Innovation and Skills",UK Shared Business Services Ltd,03/03/2023,Hardware/Software Maintenance,Production Services,UKRI - Engineering & Physical Sciences Research Council,99906008,"37,849.61",Computer Consumables,INTERCO
"Department for Business, Innovation and Skills",UK Shared Business Services Ltd,03/03/2023,Maintenance of Research & Scientific Equipment,Production Services,UKRI - Engineering & Physical Sciences Research Council,99906010,757.59,Equipment Maintenance,INTERCO
"Department for Business, Innovation and Skills",UK Shared Business Services Ltd,03/03/2023,Hardware/Software Maintenance,Production Services,UKRI - Engineering & Physical Sciences Research Council,99906011,"37,849.61",Computer Consumables,INTERCO
"Department for Business, Innovation and Skills",UK Shared Business Services Ltd,03/03/2023,Staff Training,Project Office,BA Training Solutions Ltd,99907237,"4,050.00",Training,PE3 6LU
"Department for Business, Innovation and Skills",UK Shared Business Services Ltd,03/03/2023,Contract Staff,Procurement Policy & Strategy,Hays Specialist Recruitment Ltd,99907313,"11,332.03",Recruitment Services,KT3 4QF
"Department for Business, Innovation and Skills",UK Shared Business Services Ltd,03/03/2023,Contract Staff,Procurement Policy & Strategy,Hays Specialist Recruitment Ltd,99907316,"14,873.29",Recruitment Services,KT3 4QF
"Department for Business, Innovation and Skills",UK Shared Business Services Ltd,03/03/2023,Agency Staff,Tier 1 BOE Transactions,Hays Specialist Recruitment Ltd,99907318,429.52,Recruitment Services,KT3 4QF
"Department for Business, Innovation and Skills",UK Shared Business Services Ltd,03/03/2023,Agency Staff,Tier 1 BOE Transactions,Hays Specialist Recruitment Ltd,99907320,"3,111.37",Recruitment Services,KT3 4QF
"Department for Business, Innovation and Skills",UK Shared Business Services Ltd,03/03/2023,Agency Staff,Tier 1 BOE Transactions,Hays Specialist Recruitment Ltd,99907322,"3,268.51",Recruitment Services,KT3 4QF
"Department for Business, Innovation and Skills",UK Shared Business Services Ltd,03/03/2023,Staff Training,HRSD Recoverables,ASK Europe PLC,99907354,504.00,Training,MK43 0BT
"Department for Business, Innovation and Skills",UK Shared Business Services Ltd,03/03/2023,Staff Training,HRSD Recoverables,ASK Europe PLC,99907355,504.00,Training,MK43 0BT
"Department for Business, Innovation and Skills",UK Shared Business Services Ltd,03/03/2023,Staff Training,HRSD Recoverables,ASK Europe PLC,99907356,"1,008.00",Training,MK43 0BT
"Department for Business, Innovation and Skills",UK Shared Business Services Ltd,03/03/2023,Staff Training,HRSD Recoverables,ASK Europe PLC,99907357,"1,008.00",Training,MK43 0BT
"Department for Business, Innovation and Skills",UK Shared Business Services Ltd,03/03/2023,Staff Training,HRSD Recoverables,ASK Europe PLC,99907359,840.00,Training,MK43 0BT
"Department for Business, Innovation and Skills",UK Shared Business Services Ltd,03/03/2023,T&S - Other Charges,Partnership Management,Unspecified,99908129,197.99,Home-working Equipment,HOME
"Department for Business, Innovation and Skills",UK Shared Business Services Ltd,03/03/2023,T&S - Subsistence,"Risk, Information & Security Compliance",Unspecified,99908130,9.80,Breakfast (Actuals),HOME
"Department for Business, Innovation and Skills",UK Shared Business Services Ltd,03/03/2023,T&S - Subsistence,"Risk, Information & Security Compliance",Unspecified,99908130,26.00,Evening Meal (Actuals),HOME
"Department for Business, Innovation and Skills",UK Shared Business Services Ltd,03/03/2023,T&S - Subsistence,"Risk, Information & Security Compliance",Unspecified,99908130,6.45,Lunch (Actuals),HOME
"Department for Business, Innovation and Skills",UK Shared Business Services Ltd,03/03/2023,T&S - Mileage,D&I Infrastructure & Network Services,Unspecified,99908131,41.46,Mileage - Car (excl Home to Office),HOME
"Department for Business, Innovation and Skills",UK Shared Business Services Ltd,06/03/2023,Health & Safety (inc. Medicals & Opticians),People,Circle Health Group Ltd,99901018,899.00,Professional Services,SK3 0XN
"Department for Business, Innovation and Skills",UK Shared Business Services Ltd,06/03/2023,Health & Safety (inc. Medicals & Opticians),People,Circle Health Group Ltd,99901021,"2,040.20",Professional Services,SK3 0XN
"Department for Business, Innovation and Skills",UK Shared Business Services Ltd,06/03/2023,Agency Staff,HR Ops,Hays Specialist Recruitment Ltd,99905266,"1,079.03",Recruitment Services,KT3 4QF
"Department for Business, Innovation and Skills",UK Shared Business Services Ltd,06/03/2023,GPC Clearing - SSC,Balance Sheet,Unspecified,99905598,-207.40,Unspecified,HOME
"Department for Business, Innovation and Skills",UK Shared Business Services Ltd,06/03/2023,Staff Training,Production Services,Unspecified,99905598,207.40,GPC_Training,HOME
"Department for Business, Innovation and Skills",UK Shared Business Services Ltd,06/03/2023,GPC Clearing - SSC,Balance Sheet,Unspecified,99905599,-54.30,Unspecified,HOME
"Department for Business, Innovation and Skills",UK Shared Business Services Ltd,06/03/2023,Other Clothing,D&I Management,Unspecified,99905599,54.30,GPC_Clothing - Other,HOME
"Department for Business, Innovation and Skills",UK Shared Business Services Ltd,06/03/2023,GPC Clearing - SSC,Balance Sheet,Unspecified,99905600,-62.66,Unspecified,HOME
"Department for Business, Innovation and Skills",UK Shared Business Services Ltd,06/03/2023,GPC Sundry Expenditure,ISS Recoverables - EPSRC,Unspecified,99905600,62.66,GPC_Miscellaneous GPC Expenditure,HOME
"Department for Business, Innovation and Skills",UK Shared Business Services Ltd,06/03/2023,GPC Clearing - SSC,Balance Sheet,Unspecified,99905601,-79.02,Unspecified,HOME
"Department for Business, Innovation and Skills",UK Shared Business Services Ltd,06/03/2023,GPC Sundry Expenditure,Production Services,Unspecified,99905601,79.02,GPC_Miscellaneous GPC Expenditure,HOME
"Department for Business, Innovation and Skills",UK Shared Business Services Ltd,06/03/2023,GPC Clearing - SSC,Balance Sheet,Unspecified,99905602,-9.98,Unspecified,HOME
"Department for Business, Innovation and Skills",UK Shared Business Services Ltd,06/03/2023,GPC Sundry Expenditure,Production Services,Unspecified,99905602,9.98,GPC_Miscellaneous GPC Expenditure,HOME
"Department for Business, Innovation and Skills",UK Shared Business Services Ltd,06/03/2023,Recruitment Costs,Corporate HR,Agenda Resource Management Ltd,99907102,483.41,Professional Services,HU12 8YJ
"Department for Business, Innovation and Skills",UK Shared Business Services Ltd,06/03/2023,Recruitment Costs,Corporate HR,Everwell Occupational Health Ltd,99907974,378.00,Professional Services,CW11 3AE
"Department for Business, Innovation and Skills",UK Shared Business Services Ltd,06/03/2023,T&S - Accommodation,D&I Operations,Corporate Travel Management (North) Ltd,99908497,0.80,05/02/2023---Hotel Fee,BD1 5HQ
"Department for Business, Innovation and Skills",UK Shared Business Services Ltd,06/03/2023,T&S - Accommodation,D&I Operations,Corporate Travel Management (North) Ltd,99908497,895.00,05/02/2023-Rochester Hotel By Blue Orchid-London Heathrow-Hotel,BD1 5HQ
"Department for Business, Innovation and Skills",UK Shared Business Services Ltd,06/03/2023,T&S - Accommodation,D&I Operations,Corporate Travel Management (North) Ltd,99908497,0.80,12/02/2023---Hotel Fee,BD1 5HQ
"Department for Business, Innovation and Skills",UK Shared Business Services Ltd,06/03/2023,T&S - Accommodation,D&I Operations,Corporate Travel Management (North) Ltd,99908497,825.00,12/02/2023-Rochester Hotel By Blue Orchid-London Heathrow-Hotel,BD1 5HQ
"Department for Business, Innovation and Skills",UK Shared Business Services Ltd,06/03/2023,T&S - Accommodation,D&I Operations,Corporate Travel Management (North) Ltd,99908497,0.32,Travel & Hotel charges,BD1 5HQ
"Department for Business, Innovation and Skills",UK Shared Business Services Ltd,06/03/2023,T&S - Accommodation,Executive Function,Corporate Travel Management (North) Ltd,99908497,0.80,08/02/2023---Hotel Fee,BD1 5HQ
"Department for Business, Innovation and Skills",UK Shared Business Services Ltd,06/03/2023,T&S - Accommodation,Executive Function,Corporate Travel Management (North) Ltd,99908497,200.00,08/02/2023-Cbh Hardwick Hall H-Teesside-Hotel,BD1 5HQ
"Department for Business, Innovation and Skills",UK Shared Business Services Ltd,06/03/2023,T&S - Accommodation,Executive Function,Corporate Travel Management (North) Ltd,99908497,0.80,08/02/2023---Hotel Fee,BD1 5HQ
"Department for Business, Innovation and Skills",UK Shared Business Services Ltd,06/03/2023,T&S - Accommodation,Executive Function,Corporate Travel Management (North) Ltd,99908497,200.00,08/02/2023-Cbh Hardwick Hall H-Teesside-Hotel,BD1 5HQ
"Department for Business, Innovation and Skills",UK Shared Business Services Ltd,06/03/2023,T&S - Accommodation,Executive Function,Corporate Travel Management (North) Ltd,99908497,0.80,20/02/2023---Hotel Fee,BD1 5HQ
"Department for Business, Innovation and Skills",UK Shared Business Services Ltd,06/03/2023,T&S - Accommodation,Executive Function,Corporate Travel Management (North) Ltd,99908497,0.80,20/02/2023---Hotel Fee,BD1 5HQ
"Department for Business, Innovation and Skills",UK Shared Business Services Ltd,06/03/2023,T&S - Accommodation,Executive Function,Corporate Travel Management (North) Ltd,99908497,0.80,20/02/2023---Hotel Fee,BD1 5HQ
"Department for Business, Innovation and Skills",UK Shared Business Services Ltd,06/03/2023,T&S - Accommodation,Executive Function,Corporate Travel Management (North) Ltd,99908497,200.00,20/02/2023-Cbh Hardwick Hall H-Teesside-Hotel,BD1 5HQ
"Department for Business, Innovation and Skills",UK Shared Business Services Ltd,06/03/2023,T&S - Accommodation,Executive Function,Corporate Travel Management (North) Ltd,99908497,0.80,Travel & Hotel charges,BD1 5HQ
"Department for Business, Innovation and Skills",UK Shared Business Services Ltd,06/03/2023,T&S - Accommodation,Finance Operations 1,Corporate Travel Management (North) Ltd,99908497,0.80,02/02/2023---Hotel Fee,BD1 5HQ
"Department for Business, Innovation and Skills",UK Shared Business Services Ltd,06/03/2023,T&S - Accommodation,Finance Operations 1,Corporate Travel Management (North) Ltd,99908497,81.50,02/02/2023-Leonardo Hotel Swin-Bristol-Hotel,BD1 5HQ
"Department for Business, Innovation and Skills",UK Shared Business Services Ltd,06/03/2023,T&S - Accommodation,Finance Operations 1,Corporate Travel Management (North) Ltd,99908497,0.80,02/02/2023---Hotel Fee,BD1 5HQ
"Department for Business, Innovation and Skills",UK Shared Business Services Ltd,06/03/2023,T&S - Accommodation,Finance Operations 1,Corporate Travel Management (North) Ltd,99908497,81.50,02/02/2023-Leonardo Hotel Swin-Bristol-Hotel,BD1 5HQ
"Department for Business, Innovation and Skills",UK Shared Business Services Ltd,06/03/2023,T&S - Accommodation,Finance Operations 1,Corporate Travel Management (North) Ltd,99908497,0.80,02/02/2023---Hotel Fee,BD1 5HQ
"Department for Business, Innovation and Skills",UK Shared Business Services Ltd,06/03/2023,T&S - Accommodation,Finance Operations 1,Corporate Travel Management (North) Ltd,99908497,81.50,02/02/2023-Leonardo Hotel Swin-Bristol-Hotel,BD1 5HQ
"Department for Business, Innovation and Skills",UK Shared Business Services Ltd,06/03/2023,T&S - Accommodation,Finance Operations 1,Corporate Travel Management (North) Ltd,99908497,0.48,Travel & Hotel charges,BD1 5HQ
"Department for Business, Innovation and Skills",UK Shared Business Services Ltd,06/03/2023,T&S - Accommodation,HR Ops,Corporate Travel Management (North) Ltd,99908497,0.80,21/02/2023---Hotel Fee,BD1 5HQ
"Department for Business, Innovation and Skills",UK Shared Business Services Ltd,06/03/2023,T&S - Accommodation,HR Ops,Corporate Travel Management (North) Ltd,99908497,108.00,21/02/2023-Manor House At Celtic Manor-Bristol-Hotel,BD1 5HQ
"Department for Business, Innovation and Skills",UK Shared Business Services Ltd,06/03/2023,T&S - Accommodation,HR Ops,Corporate Travel Management (North) Ltd,99908497,0.80,21/02/2023---Hotel Fee,BD1 5HQ
"Department for Business, Innovation and Skills",UK Shared Business Services Ltd,06/03/2023,T&S - Accommodation,HR Ops,Corporate Travel Management (North) Ltd,99908497,108.00,21/02/2023-Manor House At Celtic Manor-Bristol-Hotel,BD1 5HQ
"Department for Business, Innovation and Skills",UK Shared Business Services Ltd,06/03/2023,T&S - Accommodation,HR Ops,Corporate Travel Management (North) Ltd,99908497,0.32,Travel & Hotel charges,BD1 5HQ
"Department for Business, Innovation and Skills",UK Shared Business Services Ltd,06/03/2023,T&S - Accommodation,Partnership Management,Corporate Travel Management (North) Ltd,99908497,0.80,13/02/2023---Hotel Fee,BD1 5HQ
"Department for Business, Innovation and Skills",UK Shared Business Services Ltd,06/03/2023,T&S - Accommodation,Partnership Management,Corporate Travel Management (North) Ltd,99908497,150.00,13/02/2023-Leonardo Hotel Swin-Bristol-Hotel,BD1 5HQ
"Department for Business, Innovation and Skills",UK Shared Business Services Ltd,06/03/2023,T&S - Accommodation,Partnership Management,Corporate Travel Management (North) Ltd,99908497,0.16,Travel & Hotel charges,BD1 5HQ
"Department for Business, Innovation and Skills",UK Shared Business Services Ltd,06/03/2023,T&S - Accommodation,Project Office,Corporate Travel Management (North) Ltd,99908497,0.80,20/02/2023---Hotel Fee,BD1 5HQ
"Department for Business, Innovation and Skills",UK Shared Business Services Ltd,06/03/2023,T&S - Accommodation,Project Office,Corporate Travel Management (North) Ltd,99908497,200.00,20/02/2023-Cbh Hardwick Hall H-Teesside-Hotel,BD1 5HQ
"Department for Business, Innovation and Skills",UK Shared Business Services Ltd,06/03/2023,T&S - Accommodation,Project Office,Corporate Travel Management (North) Ltd,99908497,0.16,Travel & Hotel charges,BD1 5HQ
"Department for Business, Innovation and Skills",UK Shared Business Services Ltd,06/03/2023,T&S - Accommodation,Resourcing,Corporate Travel Management (North) Ltd,99908497,0.80,08/02/2023---Hotel Fee,BD1 5HQ
"Department for Business, Innovation and Skills",UK Shared Business Services Ltd,06/03/2023,T&S - Accommodation,Resourcing,Corporate Travel Management (North) Ltd,99908497,200.00,08/02/2023-Cbh Hardwick Hall H-Teesside-Hotel,BD1 5HQ
"Department for Business, Innovation and Skills",UK Shared Business Services Ltd,06/03/2023,T&S - Accommodation,Resourcing,Corporate Travel Management (North) Ltd,99908497,0.16,Travel & Hotel charges,BD1 5HQ
"Department for Business, Innovation and Skills",UK Shared Business Services Ltd,06/03/2023,T&S - Accommodation,"Risk, Information & Security Compliance",Corporate Travel Management (North) Ltd,99908497,0.80,07/02/2023---Hotel Fee,BD1 5HQ
"Department for Business, Innovation and Skills",UK Shared Business Services Ltd,06/03/2023,T&S - Accommodation,"Risk, Information & Security Compliance",Corporate Travel Management (North) Ltd,99908497,159.85,07/02/2023-Hub By Premier Inn London Westmi-London City-Hotel,BD1 5HQ
"Department for Business, Innovation and Skills",UK Shared Business Services Ltd,06/03/2023,T&S - Accommodation,"Risk, Information & Security Compliance",Corporate Travel Management (North) Ltd,99908497,0.80,07/02/2023---Hotel Fee,BD1 5HQ
"Department for Business, Innovation and Skills",UK Shared Business Services Ltd,06/03/2023,T&S - Accommodation,"Risk, Information & Security Compliance",Corporate Travel Management (North) Ltd,99908497,159.85,07/02/2023-Hub By Premier Inn London Westmi-London City-Hotel,BD1 5HQ
"Department for Business, Innovation and Skills",UK Shared Business Services Ltd,06/03/2023,T&S - Accommodation,"Risk, Information & Security Compliance",Corporate Travel Management (North) Ltd,99908497,0.80,20/02/2023---Hotel Fee,BD1 5HQ
"Department for Business, Innovation and Skills",UK Shared Business Services Ltd,06/03/2023,T&S - Accommodation,"Risk, Information & Security Compliance",Corporate Travel Management (North) Ltd,99908497,100.00,20/02/2023-The Kingswood Guest House-Teesside-Hotel,BD1 5HQ
"Department for Business, Innovation and Skills",UK Shared Business Services Ltd,06/03/2023,T&S - Accommodation,"Risk, Information & Security Compliance",Corporate Travel Management (North) Ltd,99908497,0.48,Travel & Hotel charges,BD1 5HQ
"Department for Business, Innovation and Skills",UK Shared Business Services Ltd,06/03/2023,T&S - Accommodation,Tier 1 BOE Transactions,Corporate Travel Management (North) Ltd,99908497,0.80,08/02/2023---Hotel Fee,BD1 5HQ
"Department for Business, Innovation and Skills",UK Shared Business Services Ltd,06/03/2023,T&S - Accommodation,Tier 1 BOE Transactions,Corporate Travel Management (North) Ltd,99908497,200.00,08/02/2023-Cbh Hardwick Hall H-Teesside-Hotel,BD1 5HQ
"Department for Business, Innovation and Skills",UK Shared Business Services Ltd,06/03/2023,T&S - Accommodation,Tier 1 BOE Transactions,Corporate Travel Management (North) Ltd,99908497,0.16,Travel & Hotel charges,BD1 5HQ
"Department for Business, Innovation and Skills",UK Shared Business Services Ltd,06/03/2023,T&S - Accommodation,Tier 1 ROE Transactions,Corporate Travel Management (North) Ltd,99908497,0.80,20/02/2023---Hotel Fee,BD1 5HQ
"Department for Business, Innovation and Skills",UK Shared Business Services Ltd,06/03/2023,T&S - Accommodation,Tier 1 ROE Transactions,Corporate Travel Management (North) Ltd,99908497,83.63,20/02/2023-Holiday Inn Exp New-Cardiff-Hotel,BD1 5HQ
"Department for Business, Innovation and Skills",UK Shared Business Services Ltd,06/03/2023,T&S - Accommodation,Tier 1 ROE Transactions,Corporate Travel Management (North) Ltd,99908497,0.16,Travel & Hotel charges,BD1 5HQ
"Department for Business, Innovation and Skills",UK Shared Business Services Ltd,06/03/2023,T&S - Other Charges,Finance Operations 2,Corporate Travel Management (North) Ltd,99908497,0.25,08/02/2023---Rail Fee,BD1 5HQ
"Department for Business, Innovation and Skills",UK Shared Business Services Ltd,06/03/2023,T&S - Other Charges,Finance Operations 2,Corporate Travel Management (North) Ltd,99908497,35.00,08/02/2023-Newport S.wales-Swindon-Rail,BD1 5HQ
"Department for Business, Innovation and Skills",UK Shared Business Services Ltd,06/03/2023,T&S - Other Charges,Finance Operations 2,Corporate Travel Management (North) Ltd,99908497,0.25,15/02/2023---Rail Fee,BD1 5HQ
"Department for Business, Innovation and Skills",UK Shared Business Services Ltd,06/03/2023,T&S - Other Charges,Finance Operations 2,Corporate Travel Management (North) Ltd,99908497,35.00,15/02/2023-Newport S.wales-Swindon-Rail,BD1 5HQ
"Department for Business, Innovation and Skills",UK Shared Business Services Ltd,06/03/2023,T&S - Other Charges,Finance Operations 2,Corporate Travel Management (North) Ltd,99908497,0.25,22/02/2023---Rail Fee,BD1 5HQ
"Department for Business, Innovation and Skills",UK Shared Business Services Ltd,06/03/2023,T&S - Other Charges,Finance Operations 2,Corporate Travel Management (North) Ltd,99908497,35.00,22/02/2023-Newport S.wales-Swindon-Rail,BD1 5HQ
"Department for Business, Innovation and Skills",UK Shared Business Services Ltd,06/03/2023,T&S - Public Transport,Category and Continuous Improvement,Corporate Travel Management (North) Ltd,99908497,0.25,02/02/2023---Rail Fee,BD1 5HQ
"Department for Business, Innovation and Skills",UK Shared Business Services Ltd,06/03/2023,T&S - Public Transport,Category and Continuous Improvement,Corporate Travel Management (North) Ltd,99908497,26.20,02/02/2023-Bristol Parkway-Swindon-Rail,BD1 5HQ
"Department for Business, Innovation and Skills",UK Shared Business Services Ltd,06/03/2023,T&S - Public Transport,Category and Continuous Improvement,Corporate Travel Management (North) Ltd,99908497,0.25,07/02/2023---Rail Fee,BD1 5HQ
"Department for Business, Innovation and Skills",UK Shared Business Services Ltd,06/03/2023,T&S - Public Transport,Category and Continuous Improvement,Corporate Travel Management (North) Ltd,99908497,35.00,07/02/2023-Newport S.wales-Swindon-Rail,BD1 5HQ
"Department for Business, Innovation and Skills",UK Shared Business Services Ltd,06/03/2023,T&S - Public Transport,Category and Continuous Improvement,Corporate Travel Management (North) Ltd,99908497,0.25,07/02/2023---Rail Fee,BD1 5HQ
"Department for Business, Innovation and Skills",UK Shared Business Services Ltd,06/03/2023,T&S - Public Transport,Category and Continuous Improvement,Corporate Travel Management (North) Ltd,99908497,26.20,07/02/2023-Bristol Parkway-Swindon-Rail,BD1 5HQ
"Department for Business, Innovation and Skills",UK Shared Business Services Ltd,06/03/2023,T&S - Public Transport,Category and Continuous Improvement,Corporate Travel Management (North) Ltd,99908497,0.25,09/02/2023---Rail Fee,BD1 5HQ
"Department for Business, Innovation and Skills",UK Shared Business Services Ltd,06/03/2023,T&S - Public Transport,Category and Continuous Improvement,Corporate Travel Management (North) Ltd,99908497,35.00,09/02/2023-Newport S.wales-Swindon-Rail,BD1 5HQ
"Department for Business, Innovation and Skills",UK Shared Business Services Ltd,06/03/2023,T&S - Public Transport,Category and Continuous Improvement,Corporate Travel Management (North) Ltd,99908497,0.25,13/02/2023---Rail Fee,BD1 5HQ
"Department for Business, Innovation and Skills",UK Shared Business Services Ltd,06/03/2023,T&S - Public Transport,Category and Continuous Improvement,Corporate Travel Management (North) Ltd,99908497,35.00,13/02/2023-Newport S.wales-Swindon-Rail,BD1 5HQ
"Department for Business, Innovation and Skills",UK Shared Business Services Ltd,06/03/2023,T&S - Public Transport,Category and Continuous Improvement,Corporate Travel Management (North) Ltd,99908497,0.25,14/02/2023---Rail Fee,BD1 5HQ
"Department for Business, Innovation and Skills",UK Shared Business Services Ltd,06/03/2023,T&S - Public Transport,Category and Continuous Improvement,Corporate Travel Management (North) Ltd,99908497,26.20,14/02/2023-Bristol Parkway-Swindon-Rail,BD1 5HQ
"Department for Business, Innovation and Skills",UK Shared Business Services Ltd,06/03/2023,T&S - Public Transport,Category and Continuous Improvement,Corporate Travel Management (North) Ltd,99908497,0.25,16/02/2023---Rail Fee,BD1 5HQ
"Department for Business, Innovation and Skills",UK Shared Business Services Ltd,06/03/2023,T&S - Public Transport,Category and Continuous Improvement,Corporate Travel Management (North) Ltd,99908497,26.20,16/02/2023-Bristol Parkway-Swindon-Rail,BD1 5HQ
"Department for Business, Innovation and Skills",UK Shared Business Services Ltd,06/03/2023,T&S - Public Transport,Category and Continuous Improvement,Corporate Travel Management (North) Ltd,99908497,0.25,21/02/2023---Rail Fee,BD1 5HQ
"Department for Business, Innovation and Skills",UK Shared Business Services Ltd,06/03/2023,T&S - Public Transport,Category and Continuous Improvement,Corporate Travel Management (North) Ltd,99908497,26.20,21/02/2023-Bristol Parkway-Swindon-Rail,BD1 5HQ
"Department for Business, Innovation and Skills",UK Shared Business Services Ltd,06/03/2023,T&S - Public Transport,Communications,Corporate Travel Management (North) Ltd,99908497,0.25,07/02/2023---Rail Fee,BD1 5HQ
"Department for Business, Innovation and Skills",UK Shared Business Services Ltd,06/03/2023,T&S - Public Transport,Communications,Corporate Travel Management (North) Ltd,99908497,35.00,07/02/2023-Newport S.wales-Swindon-Rail,BD1 5HQ
"Department for Business, Innovation and Skills",UK Shared Business Services Ltd,06/03/2023,T&S - Public Transport,Communications,Corporate Travel Management (North) Ltd,99908497,0.25,09/02/2023---Rail Fee,BD1 5HQ
"Department for Business, Innovation and Skills",UK Shared Business Services Ltd,06/03/2023,T&S - Public Transport,Communications,Corporate Travel Management (North) Ltd,99908497,35.00,09/02/2023-Newport S.wales-Swindon-Rail,BD1 5HQ
"Department for Business, Innovation and Skills",UK Shared Business Services Ltd,06/03/2023,T&S - Public Transport,Corporate Finance,Corporate Travel Management (North) Ltd,99908497,0.12,03/03/2023---Rail Fee,BD1 5HQ
"Department for Business, Innovation and Skills",UK Shared Business Services Ltd,06/03/2023,T&S - Public Transport,Corporate Finance,Corporate Travel Management (North) Ltd,99908497,158.70,03/03/2023-Swindon (wilts)-London Paddington-Rail,BD1 5HQ
"Department for Business, Innovation and Skills",UK Shared Business Services Ltd,06/03/2023,T&S - Public Transport,Corporate Finance,Corporate Travel Management (North) Ltd,99908497,0.25,07/02/2023---Rail Fee,BD1 5HQ
"Department for Business, Innovation and Skills",UK Shared Business Services Ltd,06/03/2023,T&S - Public Transport,Corporate Finance,Corporate Travel Management (North) Ltd,99908497,50.55,07/02/2023-Swindon (wilts)-London Paddington-Rail,BD1 5HQ
"Department for Business, Innovation and Skills",UK Shared Business Services Ltd,06/03/2023,T&S - Public Transport,Corporate Finance,Corporate Travel Management (North) Ltd,99908497,0.25,16/02/2023---Rail Fee,BD1 5HQ
"Department for Business, Innovation and Skills",UK Shared Business Services Ltd,06/03/2023,T&S - Public Transport,Corporate Finance,Corporate Travel Management (North) Ltd,99908497,35.00,16/02/2023-Newport S.wales-Swindon-Rail,BD1 5HQ
"Department for Business, Innovation and Skills",UK Shared Business Services Ltd,06/03/2023,T&S - Public Transport,Corporate Finance,Corporate Travel Management (North) Ltd,99908497,0.25,16/02/2023---Rail Fee,BD1 5HQ
"Department for Business, Innovation and Skills",UK Shared Business Services Ltd,06/03/2023,T&S - Public Transport,Corporate Finance,Corporate Travel Management (North) Ltd,99908497,35.00,16/02/2023-Pontypool And New Inn-Swindon-Rail,BD1 5HQ
"Department for Business, Innovation and Skills",UK Shared Business Services Ltd,06/03/2023,T&S - Public Transport,Corporate Finance,Corporate Travel Management (North) Ltd,99908497,0.25,16/02/2023---Rail Fee,BD1 5HQ
"Department for Business, Innovation and Skills",UK Shared Business Services Ltd,06/03/2023,T&S - Public Transport,Corporate Finance,Corporate Travel Management (North) Ltd,99908497,35.00,16/02/2023-Newport S.wales-Swindon-Rail,BD1 5HQ
"Department for Business, Innovation and Skills",UK Shared Business Services Ltd,06/03/2023,T&S - Public Transport,D&I Management,Corporate Travel Management (North) Ltd,99908497,0.09,03/03/2023---Rail Fee,BD1 5HQ
"Department for Business, Innovation and Skills",UK Shared Business Services Ltd,06/03/2023,T&S - Public Transport,D&I Management,Corporate Travel Management (North) Ltd,99908497,158.70,03/03/2023-Swindon (wilts)-London Paddington-Rail,BD1 5HQ
"Department for Business, Innovation and Skills",UK Shared Business Services Ltd,06/03/2023,T&S - Public Transport,D&I Management,Corporate Travel Management (North) Ltd,99908497,0.08,03/03/2023---Rail Fee,BD1 5HQ
"Department for Business, Innovation and Skills",UK Shared Business Services Ltd,06/03/2023,T&S - Public Transport,D&I Management,Corporate Travel Management (North) Ltd,99908497,158.70,03/03/2023-Swindon (wilts)-London Paddington-Rail,BD1 5HQ
"Department for Business, Innovation and Skills",UK Shared Business Services Ltd,06/03/2023,T&S - Public Transport,D&I Management,Corporate Travel Management (North) Ltd,99908497,0.13,03/03/2023---Rail Fee,BD1 5HQ
"Department for Business, Innovation and Skills",UK Shared Business Services Ltd,06/03/2023,T&S - Public Transport,D&I Management,Corporate Travel Management (North) Ltd,99908497,202.50,03/03/2023-Chippenham-London Paddington-Rail,BD1 5HQ
"Department for Business, Innovation and Skills",UK Shared Business Services Ltd,06/03/2023,T&S - Public Transport,D&I Management,Corporate Travel Management (North) Ltd,99908497,0.12,03/03/2023---Rail Fee,BD1 5HQ
"Department for Business, Innovation and Skills",UK Shared Business Services Ltd,06/03/2023,T&S - Public Transport,D&I Management,Corporate Travel Management (North) Ltd,99908497,202.50,03/03/2023-Chippenham-London Paddington-Rail,BD1 5HQ
"Department for Business, Innovation and Skills",UK Shared Business Services Ltd,06/03/2023,T&S - Public Transport,D&I Management,Corporate Travel Management (North) Ltd,99908497,0.08,03/03/2023---Rail Fee,BD1 5HQ
"Department for Business, Innovation and Skills",UK Shared Business Services Ltd,06/03/2023,T&S - Public Transport,D&I Management,Corporate Travel Management (North) Ltd,99908497,158.70,03/03/2023-Swindon (wilts)-London Paddington-Rail,BD1 5HQ
"Department for Business, Innovation and Skills",UK Shared Business Services Ltd,06/03/2023,T&S - Public Transport,D&I Operations,Corporate Travel Management (North) Ltd,99908497,0.25,07/02/2023---Rail Fee,BD1 5HQ
"Department for Business, Innovation and Skills",UK Shared Business Services Ltd,06/03/2023,T&S - Public Transport,D&I Operations,Corporate Travel Management (North) Ltd,99908497,35.00,07/02/2023-Newport S.wales-Swindon-Rail,BD1 5HQ
"Department for Business, Innovation and Skills",UK Shared Business Services Ltd,06/03/2023,T&S - Public Transport,DDaT,Corporate Travel Management (North) Ltd,99908497,0.25,07/02/2023---Rail Fee,BD1 5HQ
"Department for Business, Innovation and Skills",UK Shared Business Services Ltd,06/03/2023,T&S - Public Transport,DDaT,Corporate Travel Management (North) Ltd,99908497,40.70,07/02/2023-Cardiff Central-Swindon-Rail,BD1 5HQ
"Department for Business, Innovation and Skills",UK Shared Business Services Ltd,06/03/2023,T&S - Public Transport,DDaT,Corporate Travel Management (North) Ltd,99908497,0.25,10/02/2023---Rail Fee,BD1 5HQ
"Department for Business, Innovation and Skills",UK Shared Business Services Ltd,06/03/2023,T&S - Public Transport,DDaT,Corporate Travel Management (North) Ltd,99908497,40.70,10/02/2023-Cardiff Central-Swindon-Rail,BD1 5HQ
"Department for Business, Innovation and Skills",UK Shared Business Services Ltd,06/03/2023,T&S - Public Transport,Executive Function,Corporate Travel Management (North) Ltd,99908497,0.25,03/03/2023---Rail Fee,BD1 5HQ
"Department for Business, Innovation and Skills",UK Shared Business Services Ltd,06/03/2023,T&S - Public Transport,Executive Function,Corporate Travel Management (North) Ltd,99908497,80.50,03/03/2023-Didcot Parkway-London Paddington-Rail,BD1 5HQ
"Department for Business, Innovation and Skills",UK Shared Business Services Ltd,06/03/2023,T&S - Public Transport,Executive Function,Corporate Travel Management (North) Ltd,99908497,0.25,03/03/2023---Rail Fee,BD1 5HQ
"Department for Business, Innovation and Skills",UK Shared Business Services Ltd,06/03/2023,T&S - Public Transport,Executive Function,Corporate Travel Management (North) Ltd,99908497,56.80,03/03/2023-Andover-London Waterloo-Rail,BD1 5HQ
"Department for Business, Innovation and Skills",UK Shared Business Services Ltd,06/03/2023,T&S - Public Transport,Executive Function,Corporate Travel Management (North) Ltd,99908497,0.13,03/03/2023---Rail Fee,BD1 5HQ
"Department for Business, Innovation and Skills",UK Shared Business Services Ltd,06/03/2023,T&S - Public Transport,Executive Function,Corporate Travel Management (North) Ltd,99908497,158.70,03/03/2023-Swindon (wilts)-London Paddington-Rail,BD1 5HQ
"Department for Business, Innovation and Skills",UK Shared Business Services Ltd,06/03/2023,T&S - Public Transport,Executive Function,Corporate Travel Management (North) Ltd,99908497,0.25,03/03/2023---Rail Fee,BD1 5HQ
"Department for Business, Innovation and Skills",UK Shared Business Services Ltd,06/03/2023,T&S - Public Transport,Executive Function,Corporate Travel Management (North) Ltd,99908497,202.50,03/03/2023-Chippenham-London Paddington-Rail,BD1 5HQ
"Department for Business, Innovation and Skills",UK Shared Business Services Ltd,06/03/2023,T&S - Public Transport,Executive Function,Corporate Travel Management (North) Ltd,99908497,0.25,13/03/2023---Rail Fee,BD1 5HQ
"Department for Business, Innovation and Skills",UK Shared Business Services Ltd,06/03/2023,T&S - Public Transport,Executive Function,Corporate Travel Management (North) Ltd,99908497,56.60,13/03/2023-Andover-ZONE U1* LONDN-Rail,BD1 5HQ
"Department for Business, Innovation and Skills",UK Shared Business Services Ltd,06/03/2023,T&S - Public Transport,Executive Function,Corporate Travel Management (North) Ltd,99908497,0.25,22/02/2023---Rail Fee,BD1 5HQ
"Department for Business, Innovation and Skills",UK Shared Business Services Ltd,06/03/2023,T&S - Public Transport,Executive Function,Corporate Travel Management (North) Ltd,99908497,27.20,22/02/2023-Trowbridge-Newport Gwent-Rail,BD1 5HQ
"Department for Business, Innovation and Skills",UK Shared Business Services Ltd,06/03/2023,T&S - Public Transport,Executive Function,Corporate Travel Management (North) Ltd,99908497,0.37,24/02/2023---Rail Fee,BD1 5HQ
"Department for Business, Innovation and Skills",UK Shared Business Services Ltd,06/03/2023,T&S - Public Transport,Executive Function,Corporate Travel Management (North) Ltd,99908497,202.50,24/02/2023-Chippenham-London Paddington-Rail,BD1 5HQ
"Department for Business, Innovation and Skills",UK Shared Business Services Ltd,06/03/2023,T&S - Public Transport,Executive Function,Corporate Travel Management (North) Ltd,99908497,229.00,24/02/2023-Trowbridge-London Paddington-Rail,BD1 5HQ
"Department for Business, Innovation and Skills",UK Shared Business Services Ltd,06/03/2023,T&S - Public Transport,Executive Function,Corporate Travel Management (North) Ltd,99908497,0.25,24/02/2023---Rail Fee,BD1 5HQ
"Department for Business, Innovation and Skills",UK Shared Business Services Ltd,06/03/2023,T&S - Public Transport,Executive Function,Corporate Travel Management (North) Ltd,99908497,171.50,24/02/2023-Swindon (wilts)-London Paddington-Rail,BD1 5HQ
"Department for Business, Innovation and Skills",UK Shared Business Services Ltd,06/03/2023,T&S - Public Transport,Executive Function,Corporate Travel Management (North) Ltd,99908497,0.13,24/02/2023---Rail Fee,BD1 5HQ
"Department for Business, Innovation and Skills",UK Shared Business Services Ltd,06/03/2023,T&S - Public Transport,Executive Function,Corporate Travel Management (North) Ltd,99908497,202.50,24/02/2023-Chippenham-London Paddington-Rail,BD1 5HQ
"Department for Business, Innovation and Skills",UK Shared Business Services Ltd,06/03/2023,T&S - Public Transport,Finance Operations 2,Corporate Travel Management (North) Ltd,99908497,0.25,13/02/2023---Rail Fee,BD1 5HQ
"Department for Business, Innovation and Skills",UK Shared Business Services Ltd,06/03/2023,T&S - Public Transport,Finance Operations 2,Corporate Travel Management (North) Ltd,99908497,35.00,13/02/2023-Abergavenny-Swindon-Rail,BD1 5HQ
"Department for Business, Innovation and Skills",UK Shared Business Services Ltd,06/03/2023,T&S - Public Transport,HR Training & Specialists,Corporate Travel Management (North) Ltd,99908497,0.25,08/03/2023---Rail Fee,BD1 5HQ
"Department for Business, Innovation and Skills",UK Shared Business Services Ltd,06/03/2023,T&S - Public Transport,HR Training & Specialists,Corporate Travel Management (North) Ltd,99908497,67.00,08/03/2023-Hungerford-London Paddington-Rail,BD1 5HQ
"Department for Business, Innovation and Skills",UK Shared Business Services Ltd,06/03/2023,T&S - Public Transport,HR Training & Specialists,Corporate Travel Management (North) Ltd,99908497,0.09,08/03/2023---Rail Fee,BD1 5HQ
"Department for Business, Innovation and Skills",UK Shared Business Services Ltd,06/03/2023,T&S - Public Transport,HR Training & Specialists,Corporate Travel Management (North) Ltd,99908497,157.20,08/03/2023-Swindon (wilts)-ZONE U1* LONDN-Rail,BD1 5HQ
"Department for Business, Innovation and Skills",UK Shared Business Services Ltd,06/03/2023,T&S - Public Transport,HR Training & Specialists,Corporate Travel Management (North) Ltd,99908497,0.08,08/03/2023---Rail Fee,BD1 5HQ
"Department for Business, Innovation and Skills",UK Shared Business Services Ltd,06/03/2023,T&S - Public Transport,HR Training & Specialists,Corporate Travel Management (North) Ltd,99908497,157.20,08/03/2023-Swindon (wilts)-ZONE U1* LONDN-Rail,BD1 5HQ
"Department for Business, Innovation and Skills",UK Shared Business Services Ltd,06/03/2023,T&S - Public Transport,HR Training & Specialists,Corporate Travel Management (North) Ltd,99908497,0.08,08/03/2023---Rail Fee,BD1 5HQ
"Department for Business, Innovation and Skills",UK Shared Business Services Ltd,06/03/2023,T&S - Public Transport,HR Training & Specialists,Corporate Travel Management (North) Ltd,99908497,157.20,08/03/2023-Swindon (wilts)-ZONE U1* LONDN-Rail,BD1 5HQ
"Department for Business, Innovation and Skills",UK Shared Business Services Ltd,06/03/2023,T&S - Public Transport,New System Evaluation,Corporate Travel Management (North) Ltd,99908497,5.00,15/11/2022---Rail Fee,BD1 5HQ
"Department for Business, Innovation and Skills",UK Shared Business Services Ltd,06/03/2023,T&S - Public Transport,New System Evaluation,Corporate Travel Management (North) Ltd,99908497,-14.10,15/11/2022-Stonehouse-Reading Station-Rail,BD1 5HQ
"Department for Business, Innovation and Skills",UK Shared Business Services Ltd,06/03/2023,T&S - Public Transport,Operational Assurance,Corporate Travel Management (North) Ltd,99908497,0.25,21/02/2023---Rail Fee,BD1 5HQ
"Department for Business, Innovation and Skills",UK Shared Business Services Ltd,06/03/2023,T&S - Public Transport,Operational Assurance,Corporate Travel Management (North) Ltd,99908497,35.00,21/02/2023-Swindon (wilts)-Newport Gwent-Rail,BD1 5HQ
"Department for Business, Innovation and Skills",UK Shared Business Services Ltd,06/03/2023,T&S - Public Transport,Operational Excellence,Corporate Travel Management (North) Ltd,99908497,0.25,22/02/2023---Rail Fee,BD1 5HQ
"Department for Business, Innovation and Skills",UK Shared Business Services Ltd,06/03/2023,T&S - Public Transport,Operational Excellence,Corporate Travel Management (North) Ltd,99908497,35.00,22/02/2023-Swindon (wilts)-Newport Gwent-Rail,BD1 5HQ
"Department for Business, Innovation and Skills",UK Shared Business Services Ltd,06/03/2023,T&S - Public Transport,Professional Services,Corporate Travel Management (North) Ltd,99908497,0.25,07/02/2023---Rail Fee,BD1 5HQ
"Department for Business, Innovation and Skills",UK Shared Business Services Ltd,06/03/2023,T&S - Public Transport,Professional Services,Corporate Travel Management (North) Ltd,99908497,23.00,07/02/2023-Newport S.wales-Swindon-Rail,BD1 5HQ
"Department for Business, Innovation and Skills",UK Shared Business Services Ltd,06/03/2023,T&S - Public Transport,"Risk, Information & Security Compliance",Corporate Travel Management (North) Ltd,99908497,0.13,07/03/2023---Rail Fee,BD1 5HQ
"Department for Business, Innovation and Skills",UK Shared Business Services Ltd,06/03/2023,T&S - Public Transport,"Risk, Information & Security Compliance",Corporate Travel Management (North) Ltd,99908497,77.30,07/03/2023-Swindon (wilts)-London Paddington-Rail,BD1 5HQ
"Department for Business, Innovation and Skills",UK Shared Business Services Ltd,06/03/2023,T&S - Public Transport,"Risk, Information & Security Compliance",Corporate Travel Management (North) Ltd,99908497,0.12,07/03/2023---Rail Fee,BD1 5HQ
"Department for Business, Innovation and Skills",UK Shared Business Services Ltd,06/03/2023,T&S - Public Transport,"Risk, Information & Security Compliance",Corporate Travel Management (North) Ltd,99908497,77.30,07/03/2023-Swindon (wilts)-London Paddington-Rail,BD1 5HQ
"Department for Business, Innovation and Skills",UK Shared Business Services Ltd,06/03/2023,T&S - Public Transport,"Risk, Information & Security Compliance",Corporate Travel Management (North) Ltd,99908497,0.50,16/02/2023---Rail Fee,BD1 5HQ
"Department for Business, Innovation and Skills",UK Shared Business Services Ltd,06/03/2023,T&S - Public Transport,"Risk, Information & Security Compliance",Corporate Travel Management (North) Ltd,99908497,70.00,16/02/2023-Newport S.wales-Swindon-Rail,BD1 5HQ
"Department for Business, Innovation and Skills",UK Shared Business Services Ltd,06/03/2023,T&S - Public Transport,"Risk, Information & Security Compliance",Corporate Travel Management (North) Ltd,99908497,0.25,20/02/2023---Rail Fee,BD1 5HQ
"Department for Business, Innovation and Skills",UK Shared Business Services Ltd,06/03/2023,T&S - Public Transport,"Risk, Information & Security Compliance",Corporate Travel Management (North) Ltd,99908497,165.00,20/02/2023-Bristol Temple Meads-Billingham-Rail,BD1 5HQ
"Department for Business, Innovation and Skills",UK Shared Business Services Ltd,06/03/2023,T&S - Public Transport,"Risk, Information & Security Compliance",Corporate Travel Management (North) Ltd,99908497,0.25,23/02/2023---Rail Fee,BD1 5HQ
"Department for Business, Innovation and Skills",UK Shared Business Services Ltd,06/03/2023,T&S - Public Transport,"Risk, Information & Security Compliance",Corporate Travel Management (North) Ltd,99908497,35.00,23/02/2023-Newport S.wales-Swindon-Rail,BD1 5HQ
"Department for Business, Innovation and Skills",UK Shared Business Services Ltd,06/03/2023,T&S - Public Transport,SIAM,Corporate Travel Management (North) Ltd,99908497,0.25,16/02/2023---Rail Fee,BD1 5HQ
"Department for Business, Innovation and Skills",UK Shared Business Services Ltd,06/03/2023,T&S - Public Transport,SIAM,Corporate Travel Management (North) Ltd,99908497,40.70,16/02/2023-Cardiff Central-Swindon-Rail,BD1 5HQ
"Department for Business, Innovation and Skills",UK Shared Business Services Ltd,06/03/2023,T&S - Public Transport,UK SBS Data,Corporate Travel Management (North) Ltd,99908497,0.25,07/02/2023---Rail Fee,BD1 5HQ
"Department for Business, Innovation and Skills",UK Shared Business Services Ltd,06/03/2023,T&S - Public Transport,UK SBS Data,Corporate Travel Management (North) Ltd,99908497,35.00,07/02/2023-Newport S.wales-Swindon-Rail,BD1 5HQ
"Department for Business, Innovation and Skills",UK Shared Business Services Ltd,06/03/2023,Contract Staff,Production Services,Alexander Mann Solutions Ltd,99912042,"2,648.52",Recruitment Services,EC2N 3AQ
"Department for Business, Innovation and Skills",UK Shared Business Services Ltd,06/03/2023,Contract Staff,People,Alexander Mann Solutions Ltd,99912045,"1,653.92",Recruitment Services,EC2N 3AQ
"Department for Business, Innovation and Skills",UK Shared Business Services Ltd,06/03/2023,Contract Staff,Production Services,Alexander Mann Solutions Ltd,99912051,"3,079.62",Recruitment Services,EC2N 3AQ
"Department for Business, Innovation and Skills",UK Shared Business Services Ltd,06/03/2023,Contract Staff,Production Services,Alexander Mann Solutions Ltd,99912053,"2,192.59",Recruitment Services,EC2N 3AQ
"Department for Business, Innovation and Skills",UK Shared Business Services Ltd,06/03/2023,Contract Staff,SHARP,Alexander Mann Solutions Ltd,99912056,"3,387.66",Recruitment Services,EC2N 3AQ
"Department for Business, Innovation and Skills",UK Shared Business Services Ltd,06/03/2023,Recruitment Costs,ROE Application Upgrade,Alexander Mann Solutions Ltd,99912058,"4,090.44",Recruitment Services,EC2N 3AQ
"Department for Business, Innovation and Skills",UK Shared Business Services Ltd,06/03/2023,Contract Staff,Grants CRs,Alexander Mann Solutions Ltd,99912064,"3,465.30",Recruitment Services,EC2N 3AQ
"Department for Business, Innovation and Skills",UK Shared Business Services Ltd,06/03/2023,Contract Staff,Grants CRs,Alexander Mann Solutions Ltd,99912067,"3,465.30",Recruitment Services,EC2N 3AQ
"Department for Business, Innovation and Skills",UK Shared Business Services Ltd,06/03/2023,Contract Staff,BOE Upgrade,Alexander Mann Solutions Ltd,99912071,"2,438.05",Recruitment Services,EC2N 3AQ
"Department for Business, Innovation and Skills",UK Shared Business Services Ltd,06/03/2023,VAT Input Tax Control (for UK VAT),Balance Sheet,Alexander Mann Solutions Ltd,99912071,487.61,Recruitment Services,EC2N 3AQ
"Department for Business, Innovation and Skills",UK Shared Business Services Ltd,06/03/2023,Contract Staff,Network Improvements,Alexander Mann Solutions Ltd,99912072,"3,780.36",Recruitment Services,EC2N 3AQ
"Department for Business, Innovation and Skills",UK Shared Business Services Ltd,06/03/2023,Contract Staff,Project Office,Alexander Mann Solutions Ltd,99912075,800.71,Recruitment Services,EC2N 3AQ
"Department for Business, Innovation and Skills",UK Shared Business Services Ltd,06/03/2023,Computer Software,Production Services,Softcat plc,99912122,"6,074.74",Computing Software,SL7 1LW
"Department for Business, Innovation and Skills",UK Shared Business Services Ltd,06/03/2023,Education Fees & Study Materials,SIAM,Unspecified,99912238,192.00,Educational Materials - Study Books,HOME
"Department for Business, Innovation and Skills",UK Shared Business Services Ltd,06/03/2023,T&S - Public Transport,Operational Assurance,Unspecified,99912239,14.00,Public Transport - Taxi Fare (Actuals),HOME
"Department for Business, Innovation and Skills",UK Shared Business Services Ltd,06/03/2023,Education Fees & Study Materials,Systems Support,Unspecified,99912240,130.00,Educational Materials - Study Books,HOME
"Department for Business, Innovation and Skills",UK Shared Business Services Ltd,07/03/2023,T&S - Vehicle Hire,Construction,Unspecified,99901995,31.28,Vehicle Hire/Rental/Fuel (Actuals),HOME
"Department for Business, Innovation and Skills",UK Shared Business Services Ltd,07/03/2023,T&S - Vehicle Hire,Construction,Unspecified,99901996,31.38,Vehicle Hire/Rental/Fuel (Actuals),HOME
"Department for Business, Innovation and Skills",UK Shared Business Services Ltd,07/03/2023,T&S - Vehicle Hire,Construction,Unspecified,99901997,94.31,Vehicle Hire/Rental/Fuel (Actuals),HOME
"Department for Business, Innovation and Skills",UK Shared Business Services Ltd,07/03/2023,Consultancy Services,Corporate HR,JobTrolley Ltd,99906217,"12,984.50",Consultancy Services,MK9 1LR
"Department for Business, Innovation and Skills",UK Shared Business Services Ltd,07/03/2023,Agency Staff,Contact Centres,Hays Specialist Recruitment Ltd,99907349,"2,807.57",Recruitment Services,KT3 4QF
"Department for Business, Innovation and Skills",UK Shared Business Services Ltd,07/03/2023,Staff Training,HRSD Recoverables,Feldman Ltd T/A Brian Feldman and Associates,99908701,780.00,Training,SW15 5RH
"Department for Business, Innovation and Skills",UK Shared Business Services Ltd,07/03/2023,Staff Training,HRSD Recoverables,Feldman Ltd T/A Brian Feldman and Associates,99908702,780.00,Training,SW15 5RH
"Department for Business, Innovation and Skills",UK Shared Business Services Ltd,07/03/2023,Staff Training,HRSD Recoverables,Feldman Ltd T/A Brian Feldman and Associates,99908703,780.00,Training,SW15 5RH
"Department for Business, Innovation and Skills",UK Shared Business Services Ltd,07/03/2023,IT Cloud Services,Production Services,Phoenix Software Ltd,99913245,"2,786.40",Computing Software,YO42 1NS
"Department for Business, Innovation and Skills",UK Shared Business Services Ltd,07/03/2023,T&S - Mileage,D&I Infrastructure & Network Services,Unspecified,99913351,41.46,Mileage - Car (excl Home to Office),HOME
"Department for Business, Innovation and Skills",UK Shared Business Services Ltd,07/03/2023,Conferences & Seminars,Project Office,Unspecified,99915832,-390.00,Refund rec'd 06/03/23 re OIE2071448,HOME
"Department for Business, Innovation and Skills",UK Shared Business Services Ltd,08/03/2023,Staff Training,Contact Centres,HTFT Partnership Ltd,99901538,"1,300.00",Training,B90 1RX
"Department for Business, Innovation and Skills",UK Shared Business Services Ltd,08/03/2023,T&S - Vehicle Hire,Tier 1 BOE Transactions,Unspecified,99902000,25.00,Vehicle Hire/Rental/Fuel (Actuals),HOME
"Department for Business, Innovation and Skills",UK Shared Business Services Ltd,08/03/2023,T&S - Other Charges,Tier 1 BOE Transactions,Unspecified,99902418,175.95,Home-working Equipment,HOME
"Department for Business, Innovation and Skills",UK Shared Business Services Ltd,08/03/2023,Contract Staff,Project Office,Hays Specialist Recruitment Ltd,99905258,"9,202.85",Recruitment Services,KT3 4QF
"Department for Business, Innovation and Skills",UK Shared Business Services Ltd,08/03/2023,Data Storage & Recovery,Finance Operations 1,The Maltings Document Storage Solutions Ltd,99913639,307.54,Computing Services,CF24 5EA
"Department for Business, Innovation and Skills",UK Shared Business Services Ltd,08/03/2023,Hardware/Software Maintenance,Production Services,KTSL Ltd,99913748,"4,425.00",1 X Professional Services x15 Days,SN13 9RS
"Department for Business, Innovation and Skills",UK Shared Business Services Ltd,08/03/2023,Computer Software Licences,ERP Support,Oracle Corporation UK Ltd,99915734,"62,502.02",Computing Software,BH7 7DA
"Department for Business, Innovation and Skills",UK Shared Business Services Ltd,08/03/2023,Computer Software Licences,ERP Support,Oracle Corporation UK Ltd,99915758,"147,897.02",Software as a Service subscription - June 22 - Aug 22,BH7 7DA
"Department for Business, Innovation and Skills",UK Shared Business Services Ltd,08/03/2023,Computer Software Licences,ERP Support,Oracle Corporation UK Ltd,99915760,"62,501.86",Computing Software,BH7 7DA
"Department for Business, Innovation and Skills",UK Shared Business Services Ltd,08/03/2023,Contract Staff,Procurement Policy & Strategy,Hays Specialist Recruitment Ltd,99915807,"9,298.08",Recruitment Services,KT3 4QF
"Department for Business, Innovation and Skills",UK Shared Business Services Ltd,08/03/2023,Contract Staff,Procurement Policy & Strategy,Hays Specialist Recruitment Ltd,99915808,"8,452.80",Recruitment Services,KT3 4QF
"Department for Business, Innovation and Skills",UK Shared Business Services Ltd,08/03/2023,Contract Staff,Procurement Policy & Strategy,Hays Specialist Recruitment Ltd,99915816,"8,030.16",Recruitment Services,KT3 4QF
"Department for Business, Innovation and Skills",UK Shared Business Services Ltd,08/03/2023,Contract Staff,Systems Developments,Hays Specialist Recruitment Ltd,99915821,"5,649.59",Recruitment Services,KT3 4QF
"Department for Business, Innovation and Skills",UK Shared Business Services Ltd,08/03/2023,Other Staff Benefits,People,Amazon EU SARL,99915827,475.00,ZZ-Employee Benefits,EC2A 2FA
"Department for Business, Innovation and Skills",UK Shared Business Services Ltd,08/03/2023,Agency Staff,Tier 1 ROE Transactions,Hays Specialist Recruitment Ltd,99915828,413.81,Recruitment Services,KT3 4QF
"Department for Business, Innovation and Skills",UK Shared Business Services Ltd,08/03/2023,Agency Staff,Tier 1 ROE Transactions,Hays Specialist Recruitment Ltd,99915833,"2,529.96",Recruitment Services,KT3 4QF
"Department for Business, Innovation and Skills",UK Shared Business Services Ltd,08/03/2023,Agency Staff,Contact Centres,Hays Specialist Recruitment Ltd,99915845,278.96,Recruitment Services,KT3 4QF
"Department for Business, Innovation and Skills",UK Shared Business Services Ltd,08/03/2023,Agency Staff,Contact Centres,Hays Specialist Recruitment Ltd,99915847,158.08,Recruitment Services,KT3 4QF
"Department for Business, Innovation and Skills",UK Shared Business Services Ltd,08/03/2023,Agency Staff,Tier 1 BOE Transactions,Hays Specialist Recruitment Ltd,99915853,"1,917.11",Recruitment Services,KT3 4QF
"Department for Business, Innovation and Skills",UK Shared Business Services Ltd,08/03/2023,Agency Staff,Tier 1 BOE Transactions,Hays Specialist Recruitment Ltd,99915854,"2,702.83",Recruitment Services,KT3 4QF
"Department for Business, Innovation and Skills",UK Shared Business Services Ltd,08/03/2023,Agency Staff,Tier 1 BOE Transactions,Hays Specialist Recruitment Ltd,99915855,"3,252.80",Recruitment Services,KT3 4QF
"Department for Business, Innovation and Skills",UK Shared Business Services Ltd,08/03/2023,T&S - Parking Tolls Congestion Charges,SIAM,Unspecified,99915908,11.00,"Parking, Tolls, Congestion Charge",HOME
"Department for Business, Innovation and Skills",UK Shared Business Services Ltd,08/03/2023,Health & Safety (inc. Medicals & Opticians),D&I - Enterprise Applications,Unspecified,99915909,80.00,Medical Fees & Vaccinations (Actuals),HOME
"Department for Business, Innovation and Skills",UK Shared Business Services Ltd,09/03/2023,Consultancy Services,Production Services,Barcross Ltd,99872936,600.00,Remote support of IaC tasks. To be invoiced in blocks of 0.5 days,HA2 0HY
"Department for Business, Innovation and Skills",UK Shared Business Services Ltd,09/03/2023,Consultancy Services,Production Services,Barcross Ltd,99891322,"1,200.00",Remote support of IaC tasks. To be invoiced in blocks of 0.5 days,HA2 0HY
"Department for Business, Innovation and Skills",UK Shared Business Services Ltd,09/03/2023,Computer Hardware,Network Improvements,Reconome Technologies Ltd,99899402,643.68,Computing Hardware,E11 3EH
"Department for Business, Innovation and Skills",UK Shared Business Services Ltd,09/03/2023,Computer Hardware,Network Improvements,Reconome Technologies Ltd,99899402,14.30,Computing Hardware,E11 3EH
"Department for Business, Innovation and Skills",UK Shared Business Services Ltd,09/03/2023,Computer Hardware,Network Improvements,Reconome Technologies Ltd,99899402,"1,931.04",Computing Hardware,E11 3EH
"Department for Business, Innovation and Skills",UK Shared Business Services Ltd,09/03/2023,Computer Hardware,Network Improvements,Reconome Technologies Ltd,99899402,"5,428.55",Computing Hardware,E11 3EH
"Department for Business, Innovation and Skills",UK Shared Business Services Ltd,09/03/2023,Computer Hardware,Network Improvements,Reconome Technologies Ltd,99899402,321.84,Computing Hardware,E11 3EH
"Department for Business, Innovation and Skills",UK Shared Business Services Ltd,09/03/2023,Computer Hardware,Network Improvements,Reconome Technologies Ltd,99899402,643.68,Computing Hardware,E11 3EH
"Department for Business, Innovation and Skills",UK Shared Business Services Ltd,09/03/2023,Computer Hardware,Network Improvements,Reconome Technologies Ltd,99899402,"2,031.84",Computing Hardware,E11 3EH
"Department for Business, Innovation and Skills",UK Shared Business Services Ltd,09/03/2023,Computer Hardware,Network Improvements,Reconome Technologies Ltd,99899402,901.15,Computing Hardware,E11 3EH
"Department for Business, Innovation and Skills",UK Shared Business Services Ltd,09/03/2023,Computer Hardware,Network Improvements,Reconome Technologies Ltd,99899402,89.64,Computing Hardware,E11 3EH
"Department for Business, Innovation and Skills",UK Shared Business Services Ltd,09/03/2023,Computer Hardware,Network Improvements,Reconome Technologies Ltd,99899402,910.10,Computing Hardware,E11 3EH
"Department for Business, Innovation and Skills",UK Shared Business Services Ltd,09/03/2023,Computer Hardware,Network Improvements,Reconome Technologies Ltd,99899402,682.60,Computing Hardware,E11 3EH
"Department for Business, Innovation and Skills",UK Shared Business Services Ltd,09/03/2023,Consultancy Services,Production Services,Premiertec Consulting Ltd t/a Claremont,99913884,"69,112.51","Consultancy and Professional Services to develop two key work areas around API re-development and re-use, and automation of features connected to the primary and sub-processes associated with the SML process. Also included: BAU, CIs and CRs",NE1 3DY
"Department for Business, Innovation and Skills",UK Shared Business Services Ltd,09/03/2023,Agency Staff,Tier 1 ROE Transactions,Hays Specialist Recruitment Ltd,99915836,"1,995.68",Recruitment Services,KT3 4QF
"Department for Business, Innovation and Skills",UK Shared Business Services Ltd,09/03/2023,Staff Training,HRSD Recoverables,ASK Europe PLC,99916025,504.00,Training,MK43 0BT
"Department for Business, Innovation and Skills",UK Shared Business Services Ltd,09/03/2023,Staff Training,HRSD Recoverables,ASK Europe PLC,99916033,840.00,Training,MK43 0BT
"Department for Business, Innovation and Skills",UK Shared Business Services Ltd,09/03/2023,Consultancy Services,Production Services,Ascent Digital Services UK Ltd,99916236,"3,307.50",Consultancy Services,BS1 6NL
"Department for Business, Innovation and Skills",UK Shared Business Services Ltd,09/03/2023,Consultancy Services,Production Services,Computer Systems Integration Ltd,99916393,"2,699.96",Computing Software,WC1H 9BQ
"Department for Business, Innovation and Skills",UK Shared Business Services Ltd,10/03/2023,Corporate Events,Executive Function,Calder Conference Ltd,99892066,-59.99,Conference & Venues,LS16 6RF
"Department for Business, Innovation and Skills",UK Shared Business Services Ltd,10/03/2023,Agency Staff,Tier 1 BOE Transactions,Hays Specialist Recruitment Ltd,99905232,"2,901.85",Recruitment Services,KT3 4QF
"Department for Business, Innovation and Skills",UK Shared Business Services Ltd,10/03/2023,T&S - Parking Tolls Congestion Charges,SIAM,Unspecified,99918078,8.50,"Parking, Tolls, Congestion Charge",HOME
"Department for Business, Innovation and Skills",UK Shared Business Services Ltd,10/03/2023,T&S - Accommodation,Finance Operations 1,Corporate Travel Management (North) Ltd,99918932,86.58,21/03/2023-Travelodge Swindon Central-Swindon-Hotel,BD1 5HQ
"Department for Business, Innovation and Skills",UK Shared Business Services Ltd,10/03/2023,T&S - Accommodation,Finance Operations 1,Corporate Travel Management (North) Ltd,99918932,86.58,21/03/2023-Travelodge Swindon Central-Swindon-Hotel,BD1 5HQ
"Department for Business, Innovation and Skills",UK Shared Business Services Ltd,10/03/2023,T&S - Accommodation,Finance Operations 1,Corporate Travel Management (North) Ltd,99918932,86.58,21/03/2023-Travelodge Swindon Central-Swindon-Hotel,BD1 5HQ
"Department for Business, Innovation and Skills",UK Shared Business Services Ltd,10/03/2023,T&S - Accommodation,Finance Operations 1,Corporate Travel Management (North) Ltd,99918932,86.58,21/03/2023-Travelodge Swindon Central-Swindon-Hotel,BD1 5HQ
"Department for Business, Innovation and Skills",UK Shared Business Services Ltd,10/03/2023,T&S - Accommodation,Partnership Management,Corporate Travel Management (North) Ltd,99918932,137.45,27/02/2023-Travelodge London Covent Garden-London Heathrow-Hotel,BD1 5HQ
"Department for Business, Innovation and Skills",UK Shared Business Services Ltd,10/03/2023,T&S - Other Charges,Finance Operations 2,Corporate Travel Management (North) Ltd,99918932,35.00,28/02/2023-Newport S.wales-Swindon-Rail,BD1 5HQ
"Department for Business, Innovation and Skills",UK Shared Business Services Ltd,10/03/2023,T&S - Public Transport,Category and Continuous Improvement,Corporate Travel Management (North) Ltd,99918932,26.20,27/02/2023-Bristol Temple Meads-Swindon-Rail,BD1 5HQ
"Department for Business, Innovation and Skills",UK Shared Business Services Ltd,10/03/2023,T&S - Public Transport,Category and Continuous Improvement,Corporate Travel Management (North) Ltd,99918932,35.00,28/02/2023-Newport S.wales-Swindon-Rail,BD1 5HQ
"Department for Business, Innovation and Skills",UK Shared Business Services Ltd,10/03/2023,T&S - Public Transport,Communications,Corporate Travel Management (North) Ltd,99918932,35.00,28/02/2023-Newport S.wales-Swindon-Rail,BD1 5HQ
"Department for Business, Innovation and Skills",UK Shared Business Services Ltd,10/03/2023,T&S - Public Transport,Executive Function,Corporate Travel Management (North) Ltd,99918932,53.10,13/03/2023-Didcot Parkway-London Paddington-Rail,BD1 5HQ
"Department for Business, Innovation and Skills",UK Shared Business Services Ltd,10/03/2023,T&S - Public Transport,Finance Operations 2,Corporate Travel Management (North) Ltd,99918932,35.00,24/02/2023-Abergavenny-Swindon-Rail,BD1 5HQ
"Department for Business, Innovation and Skills",UK Shared Business Services Ltd,10/03/2023,T&S - Public Transport,Finance Operations 2,Corporate Travel Management (North) Ltd,99918932,35.00,28/02/2023-Abergavenny-Swindon-Rail,BD1 5HQ
"Department for Business, Innovation and Skills",UK Shared Business Services Ltd,10/03/2023,T&S - Public Transport,Finance Operations 2,Corporate Travel Management (North) Ltd,99918932,35.00,28/02/2023-Abergavenny-Swindon-Rail,BD1 5HQ
"Department for Business, Innovation and Skills",UK Shared Business Services Ltd,10/03/2023,T&S - Public Transport,HR Ops,Corporate Travel Management (North) Ltd,99918932,165.60,03/03/2023-Swindon (wilts)-London Paddington-Rail,BD1 5HQ
"Department for Business, Innovation and Skills",UK Shared Business Services Ltd,10/03/2023,T&S - Public Transport,Partnership Management,Corporate Travel Management (North) Ltd,99918932,134.50,27/02/2023-Peterborough-Swindon-Rail,BD1 5HQ
"Department for Business, Innovation and Skills",UK Shared Business Services Ltd,10/03/2023,T&S - Public Transport,Partnership Management,Corporate Travel Management (North) Ltd,99918932,90.00,27/02/2023-Swindon (wilts)-London Paddington-Rail,BD1 5HQ
"Department for Business, Innovation and Skills",UK Shared Business Services Ltd,10/03/2023,T&S - Public Transport,Partnership Management,Corporate Travel Management (North) Ltd,99918932,30.20,28/02/2023-London Kings Cross-Peterborough-Rail,BD1 5HQ
"Department for Business, Innovation and Skills",UK Shared Business Services Ltd,10/03/2023,T&S - Public Transport,Project Office,Corporate Travel Management (North) Ltd,99918932,28.70,03/03/2023-London Paddington-Stonehouse-Rail,BD1 5HQ
"Department for Business, Innovation and Skills",UK Shared Business Services Ltd,10/03/2023,T&S - Public Transport,Project Office,Corporate Travel Management (North) Ltd,99918932,57.50,03/03/2023-Stonehouse-ZONE U1* LONDN-Rail,BD1 5HQ
"Department for Business, Innovation and Skills",UK Shared Business Services Ltd,10/03/2023,T&S - Public Transport,Strategy,Corporate Travel Management (North) Ltd,99918932,58.10,03/03/2023-Reading-London Bridge-Rail,BD1 5HQ
"Department for Business, Innovation and Skills",UK Shared Business Services Ltd,10/03/2023,Contract Staff,Production Services,Proventeq Limited,99918975,"72,888.00",Computer Consumables,RG6 6BU
"Department for Business, Innovation and Skills",UK Shared Business Services Ltd,10/03/2023,Staff Training,HRSD Recoverables,ASK Europe PLC,99918986,840.00,Training,MK43 0BT
"Department for Business, Innovation and Skills",UK Shared Business Services Ltd,10/03/2023,Corporate Events,Executive Function,Calder Conference Ltd,99919026,"7,252.61",Conference & Venues,LS16 6RF
"Department for Business, Innovation and Skills",UK Shared Business Services Ltd,10/03/2023,Corporate Events,Project Office,Calder Conference Ltd,99919028,439.01,Conference & Venues,LS16 6RF
"Department for Business, Innovation and Skills",UK Shared Business Services Ltd,13/03/2023,Secondments,People,Department for Business Energy & Industrial Strategy,99905667,"35,570.85",Head of Reward Secondment 01/10/2022-31/03/2023,NP10 8QQ
"Department for Business, Innovation and Skills",UK Shared Business Services Ltd,13/03/2023,Computing Consumables,D&I Management,Unspecified,99913350,160.74,GPC_Computer Consumables,HOME
"Department for Business, Innovation and Skills",UK Shared Business Services Ltd,13/03/2023,GPC Clearing - SSC,Balance Sheet,Unspecified,99913350,-160.74,Unspecified,HOME
"Department for Business, Innovation and Skills",UK Shared Business Services Ltd,13/03/2023,UK - Professional Memberships & Subscriptions,Executive Function,Thomson Reuters (Professional) UK Limited,99916283,"7,318.20",Professional Memberships,E14 5AQ
"Department for Business, Innovation and Skills",UK Shared Business Services Ltd,13/03/2023,Mobile Phone Costs,Production Services,Telefonica UK Ltd (O2),99918174,533.24,SR 11564734 CALL CHARGES,SMARTFORM
"Department for Business, Innovation and Skills",UK Shared Business Services Ltd,13/03/2023,Corporate Events,Project Office,Calder Conference Ltd,99918179,"1,647.50",Conference & Venues,LS16 6RF
"Department for Business, Innovation and Skills",UK Shared Business Services Ltd,13/03/2023,Recruitment Costs,Project Office,C4S Search Ltd,99918299,"8,042.76",Recruitment Services,SN5 7HB
"Department for Business, Innovation and Skills",UK Shared Business Services Ltd,13/03/2023,Contract Staff,Grants CRs,Alexander Mann Solutions Ltd,99918342,"3,465.30",Recruitment Services,EC2N 3AQ
"Department for Business, Innovation and Skills",UK Shared Business Services Ltd,13/03/2023,Staff Training,HRSD Recoverables,The Retirement Counselling Service Ltd,99921083,"1,572.00",Training,GU34 5HT
"Department for Business, Innovation and Skills",UK Shared Business Services Ltd,13/03/2023,Health & Safety (inc. Medicals & Opticians),People,Swindon Occupational Medical Services Ltd,99921104,570.00,Professional Services,GL7 7AL
"Department for Business, Innovation and Skills",UK Shared Business Services Ltd,13/03/2023,Contract Staff,Grants CRs,Alexander Mann Solutions Ltd,99921196,"3,465.30",Recruitment Services,EC2N 3AQ
"Department for Business, Innovation and Skills",UK Shared Business Services Ltd,13/03/2023,Contract Staff,Project Office,Alexander Mann Solutions Ltd,99921204,"1,601.42",Recruitment Services,EC2N 3AQ
"Department for Business, Innovation and Skills",UK Shared Business Services Ltd,13/03/2023,Contract Staff,BOE Upgrade,Alexander Mann Solutions Ltd,99921205,"2,438.05",Recruitment Services,EC2N 3AQ
"Department for Business, Innovation and Skills",UK Shared Business Services Ltd,13/03/2023,VAT Input Tax Control (for UK VAT),Balance Sheet,Alexander Mann Solutions Ltd,99921205,487.61,Recruitment Services,EC2N 3AQ
"Department for Business, Innovation and Skills",UK Shared Business Services Ltd,13/03/2023,Contract Staff,BOE Upgrade,Alexander Mann Solutions Ltd,99921207,"4,812.00",Recruitment Services,EC2N 3AQ
"Department for Business, Innovation and Skills",UK Shared Business Services Ltd,13/03/2023,VAT Input Tax Control (for UK VAT),Balance Sheet,Alexander Mann Solutions Ltd,99921207,962.40,Recruitment Services,EC2N 3AQ
"Department for Business, Innovation and Skills",UK Shared Business Services Ltd,13/03/2023,Contract Staff,Production Services,Alexander Mann Solutions Ltd,99921209,"2,648.52",Recruitment Services,EC2N 3AQ
"Department for Business, Innovation and Skills",UK Shared Business Services Ltd,13/03/2023,Contract Staff,Production Services,Alexander Mann Solutions Ltd,99921212,"2,740.74",Recruitment Services,EC2N 3AQ
"Department for Business, Innovation and Skills",UK Shared Business Services Ltd,13/03/2023,Contract Staff,Production Services,Alexander Mann Solutions Ltd,99921304,"6,930.60",Recruitment Services,EC2N 3AQ
"Department for Business, Innovation and Skills",UK Shared Business Services Ltd,13/03/2023,Contract Staff,SHARP,Alexander Mann Solutions Ltd,99921305,"3,387.66",Recruitment Services,EC2N 3AQ
"Department for Business, Innovation and Skills",UK Shared Business Services Ltd,13/03/2023,Contract Staff,Production Services,Alexander Mann Solutions Ltd,99921306,"4,090.44",Recruitment Services,EC2N 3AQ
"Department for Business, Innovation and Skills",UK Shared Business Services Ltd,13/03/2023,T&S - Parking Tolls Congestion Charges,Corporate Finance,Unspecified,99921318,10.00,"Parking, Tolls, Congestion Charge",HOME
"Department for Business, Innovation and Skills",UK Shared Business Services Ltd,13/03/2023,T&S - Subsistence,People,Unspecified,99921319,9.35,Lunch (Actuals),HOME
"Department for Business, Innovation and Skills",UK Shared Business Services Ltd,13/03/2023,T&S - Public Transport,Partnership Management,Unspecified,99921320,42.00,Public Transport - Taxi Fare (Actuals),HOME
"Department for Business, Innovation and Skills",UK Shared Business Services Ltd,13/03/2023,T&S - Subsistence,Partnership Management,Unspecified,99921320,8.17,Evening Meal (Actuals),HOME
"Department for Business, Innovation and Skills",UK Shared Business Services Ltd,13/03/2023,T&S - Subsistence,Partnership Management,Unspecified,99921320,11.79,Lunch (Actuals),HOME
"Department for Business, Innovation and Skills",UK Shared Business Services Ltd,14/03/2023,PAYE Payable Salaries,Balance Sheet,HM Revenue & Customs,99905341,"212,242.59",HMRC monthly deductions for SSC February 2023,3RD PARTY PAYME
"Department for Business, Innovation and Skills",UK Shared Business Services Ltd,14/03/2023,NI Payable Salaries,Balance Sheet,HM Revenue & Customs,99905342,"284,899.39",HMRC monthly deductions for SSC February 2023,3RD PARTY PAYME
"Department for Business, Innovation and Skills",UK Shared Business Services Ltd,14/03/2023,Student Loans,Balance Sheet,HM Revenue & Customs,99905343,"2,889.00",HMRC monthly deductions for SSC February 2023,3RD PARTY PAYME
"Department for Business, Innovation and Skills",UK Shared Business Services Ltd,14/03/2023,Apprenticeship Levy,Corporate HR,HM Revenue & Customs,99905344,"7,441.00",HMRC monthly deductions for SSC February 2023,3RD PARTY PAYME
"Department for Business, Innovation and Skills",UK Shared Business Services Ltd,14/03/2023,Computing Consumables,Production Services,Probrand Ltd,99918371,"2,136.00",Computer Consumables,SMARTFORM
"Department for Business, Innovation and Skills",UK Shared Business Services Ltd,14/03/2023,Computing Consumables,Production Services,Probrand Ltd,99918371,6.00,Computer Consumables,SMARTFORM
"Department for Business, Innovation and Skills",UK Shared Business Services Ltd,14/03/2023,T&S - Mileage,D&I Infrastructure & Network Services,Unspecified,99922728,63.00,Mileage - Car (excl Home to Office),HOME
"Department for Business, Innovation and Skills",UK Shared Business Services Ltd,14/03/2023,T&S - Subsistence,D&I Infrastructure & Network Services,Unspecified,99922728,6.62,Lunch (Actuals),HOME
"Department for Business, Innovation and Skills",UK Shared Business Services Ltd,14/03/2023,T&S - Subsistence,HR Training & Specialists,Unspecified,99922729,5.95,Lunch (Actuals),HOME
"Department for Business, Innovation and Skills",UK Shared Business Services Ltd,14/03/2023,UK - Professional Memberships & Subscriptions,Facilities,Unspecified,99922732,60.00,Professional Subscriptions (Actuals),HOME
"Department for Business, Innovation and Skills",UK Shared Business Services Ltd,15/03/2023,Staff Training,People,House of PMO Ltd,99893029,"1,896.00",Conference & Venues,SW11 3BY
"Department for Business, Innovation and Skills",UK Shared Business Services Ltd,15/03/2023,Voluntary Deductions,Balance Sheet,Civil Service Benevolent Fund,99905345,18.00,SSC THIRD PARTY PAYMENTS February2023,SM3 8DY
"Department for Business, Innovation and Skills",UK Shared Business Services Ltd,15/03/2023,Union Deductions,Balance Sheet,PCS Union,99905346,925.60,SSC THIRD PARTY PAYMENTS February2023,SW11 2LN
"Department for Business, Innovation and Skills",UK Shared Business Services Ltd,15/03/2023,Voluntary Deductions,Balance Sheet,Swindon Office Sports and Social Club,99905347,186.00,SSC THIRD PARTY PAYMENTS February2023,SN2 1EU
"Department for Business, Innovation and Skills",UK Shared Business Services Ltd,15/03/2023,Ees Pension Deductions - JSS,Balance Sheet,RCPS Pension,99905348,"181,567.22",RCPS monthly contributions for SSC February2023,SN2 1UY.
"Department for Business, Innovation and Skills",UK Shared Business Services Ltd,15/03/2023,Ers Pension Deductions - JSS,Balance Sheet,RCPS Pension,99905349,"817,135.12",RCPS monthly contributions for SSC February2023,SN2 1UY.
"Department for Business, Innovation and Skills",UK Shared Business Services Ltd,15/03/2023,Other Pension Deductions,Balance Sheet,Scottish Widows,99905350,100.00,SSC THIRD PARTY PAYMENTS February2023,EH16 5BU
"Department for Business, Innovation and Skills",UK Shared Business Services Ltd,15/03/2023,Partnership Pension Deductions,Balance Sheet,Scottish Widows,99905351,"3,517.90",SSC THIRD PARTY PAYMENTS February2023,EH16 5BU
"Department for Business, Innovation and Skills",UK Shared Business Services Ltd,15/03/2023,Partnership Pension Deductions,Balance Sheet,Standard Life Assurance Ltd,99905352,"1,634.59",SSC THIRD PARTY PAYMENTS February2023,EH1 2DH
"Department for Business, Innovation and Skills",UK Shared Business Services Ltd,15/03/2023,Ees Pension Deductions - MRC,Balance Sheet,JLT Pensions Administration Ltd T/A JLT Employee Benefits,99905353,"3,866.13",SSC THIRD PARTY PAYMENTS February2023,PRINCIPAL SECTI
"Department for Business, Innovation and Skills",UK Shared Business Services Ltd,15/03/2023,Ers Pension Deductions - MRC,Balance Sheet,JLT Pensions Administration Ltd T/A JLT Employee Benefits,99905354,"10,051.99",SSC THIRD PARTY PAYMENTS February2023,PRINCIPAL SECTI
"Department for Business, Innovation and Skills",UK Shared Business Services Ltd,15/03/2023,Voluntary Deductions,Balance Sheet,BHCA (Services) Ltd,99905355,59.15,SSC THIRD PARTY PAYMENTS February2023,NN14 1UE
"Department for Business, Innovation and Skills",UK Shared Business Services Ltd,15/03/2023,Ees Pension Deductions - MyCSP,Balance Sheet,Cabinet Office RM Shared Services,99905356,150.08,UKSBS THIRD PARTY PAYMENTS February 2023,FY5 3TA
"Department for Business, Innovation and Skills",UK Shared Business Services Ltd,15/03/2023,Ers Pension Deductions - MyCSP,Balance Sheet,Cabinet Office RM Shared Services,99905357,746.27,UKSBS THIRD PARTY PAYMENTS February 2023,FY5 3TA
"Department for Business, Innovation and Skills",UK Shared Business Services Ltd,15/03/2023,Nursery Deductions,Balance Sheet,EDENRED (UK GROUP) LTD,99922167,"1,284.00",SR 11573178 CHILCARE VOUCHERS MARCH 23,SW1V 2RS
"Department for Business, Innovation and Skills",UK Shared Business Services Ltd,15/03/2023,Staff Training,Corporate HR,Pablo Raybould,99922475,462.10,Training,B80 7PT
"Department for Business, Innovation and Skills",UK Shared Business Services Ltd,15/03/2023,Computer Software,Production Services,Softcat plc,99922969,"7,024.69",Computing Software,SL7 1LW
"Department for Business, Innovation and Skills",UK Shared Business Services Ltd,15/03/2023,T&S - Accommodation,Accounting,Unspecified,99923252,200.00,Accommodation - Hotels Elsewhere Actuals,HOME
"Department for Business, Innovation and Skills",UK Shared Business Services Ltd,15/03/2023,T&S - Parking Tolls Congestion Charges,Accounting,Unspecified,99923252,22.00,"Parking, Tolls, Congestion Charge",HOME
"Department for Business, Innovation and Skills",UK Shared Business Services Ltd,15/03/2023,T&S - Public Transport,Accounting,Unspecified,99923252,135.89,Public Transport - Train (Actuals),HOME
"Department for Business, Innovation and Skills",UK Shared Business Services Ltd,15/03/2023,T&S - Subsistence,Accounting,Unspecified,99923252,27.60,Evening Meal (Actuals),HOME
"Department for Business, Innovation and Skills",UK Shared Business Services Ltd,15/03/2023,T&S - Parking Tolls Congestion Charges,SIAM,Unspecified,99923253,11.00,"Parking, Tolls, Congestion Charge",HOME
"Department for Business, Innovation and Skills",UK Shared Business Services Ltd,16/03/2023,Computer Software,Production Services,Altair Engineering Ltd,99902283,"8,649.65",Computing Software,CV32 4JG
"Department for Business, Innovation and Skills",UK Shared Business Services Ltd,16/03/2023,Recruitment Costs,Corporate HR,Agenda Resource Management Ltd,99922194,574.91,Professional Services,HU12 8YJ
"Department for Business, Innovation and Skills",UK Shared Business Services Ltd,16/03/2023,IT / Computing Support Services,Production Services,Softcat plc,99922971,"32,986.09",Computer Consumables,SL7 1LW
"Department for Business, Innovation and Skills",UK Shared Business Services Ltd,16/03/2023,Consultancy Services,Executive Function,3Adapt Ltd,99923638,"5,400.00",Consultancy Services,BA1 5BT
"Department for Business, Innovation and Skills",UK Shared Business Services Ltd,16/03/2023,Staff Training,Corporate HR,Rob Leetham,99923656,454.00,Training,WR5 2DL
"Department for Business, Innovation and Skills",UK Shared Business Services Ltd,16/03/2023,Staff Training,HRSD Recoverables,ASK Europe PLC,99923695,504.00,Training,MK43 0BT
"Department for Business, Innovation and Skills",UK Shared Business Services Ltd,16/03/2023,T&S - Parking Tolls Congestion Charges,Operational Assurance,Unspecified,99923826,12.00,"Parking, Tolls, Congestion Charge",HOME
"Department for Business, Innovation and Skills",UK Shared Business Services Ltd,16/03/2023,T&S - Subsistence,Operational Assurance,Unspecified,99923826,45.50,Evening Meal (Actuals),HOME
"Department for Business, Innovation and Skills",UK Shared Business Services Ltd,16/03/2023,T&S - Subsistence,Operational Assurance,Unspecified,99923826,19.46,Lunch (Actuals),HOME
"Department for Business, Innovation and Skills",UK Shared Business Services Ltd,16/03/2023,T&S - Vehicle Hire,Operational Assurance,Unspecified,99923826,70.15,Vehicle Hire/Rental/Fuel (Actuals),HOME
"Department for Business, Innovation and Skills",UK Shared Business Services Ltd,16/03/2023,T&S - Public Transport,Systems Support,Unspecified,99923827,75.00,Public Transport - Taxi Fare (Actuals),HOME
"Department for Business, Innovation and Skills",UK Shared Business Services Ltd,16/03/2023,T&S - Subsistence,Systems Support,Unspecified,99923827,20.60,Evening Meal (Actuals),HOME
"Department for Business, Innovation and Skills",UK Shared Business Services Ltd,16/03/2023,T&S - Public Transport,Contact Centres,Unspecified,99923828,20.00,Public Transport - Taxi Fare (Actuals),HOME
"Department for Business, Innovation and Skills",UK Shared Business Services Ltd,16/03/2023,T&S - Public Transport,Contact Centres,Unspecified,99923828,4.70,Public Transport - Train (Actuals),HOME
"Department for Business, Innovation and Skills",UK Shared Business Services Ltd,16/03/2023,T&S - Subsistence,Contact Centres,Unspecified,99923828,17.30,Evening Meal (Actuals),HOME
"Department for Business, Innovation and Skills",UK Shared Business Services Ltd,16/03/2023,T&S - Subsistence,Contact Centres,Unspecified,99923828,5.22,Lunch (Actuals),HOME
"Department for Business, Innovation and Skills",UK Shared Business Services Ltd,16/03/2023,External Audit Fees,"Risk, Information & Security Compliance",HM Treasury Group,99924538,"104,701.14",ZZ-Professional Services,NR7 0HS
"Department for Business, Innovation and Skills",UK Shared Business Services Ltd,16/03/2023,T&S - Vehicle Hire,Production Services,Enterprise Rent-A-Car UK Ltd,99924573,73.35,,GL2 5DA
"Department for Business, Innovation and Skills",UK Shared Business Services Ltd,16/03/2023,T&S - Vehicle Hire,Production Services,Enterprise Rent-A-Car UK Ltd,99924573,14.67,SR11570266 - CarHire,GL2 5DA
"Department for Business, Innovation and Skills",UK Shared Business Services Ltd,17/03/2023,Staff Training,Project Office,BA Training Solutions Ltd,99913307,"4,050.00",Training,PE3 6LU
"Department for Business, Innovation and Skills",UK Shared Business Services Ltd,17/03/2023,Telecoms - Land Line Rental,Production Services,British Telecom Plc (BT),99917850,366.01,SR 11561424 REGULAR CHARGES 01/02/23-30/04/23,E1 8EE
"Department for Business, Innovation and Skills",UK Shared Business Services Ltd,17/03/2023,Data Storage & Recovery,Finance Operations 1,Restore plc,99921665,"1,228.43",Computing Services,RH1 5DY
"Department for Business, Innovation and Skills",UK Shared Business Services Ltd,17/03/2023,Computer Hardware,Production Services,Probrand Ltd,99922982,238.80,Computing Hardware,SMARTFORM
"Department for Business, Innovation and Skills",UK Shared Business Services Ltd,17/03/2023,Computing Consumables,Production Services,Probrand Ltd,99923726,"1,199.40",Computer Consumables,SMARTFORM
"Department for Business, Innovation and Skills",UK Shared Business Services Ltd,17/03/2023,Computing Consumables,Production Services,Probrand Ltd,99923726,442.80,Computer Consumables,SMARTFORM
"Department for Business, Innovation and Skills",UK Shared Business Services Ltd,17/03/2023,Computing Consumables,Production Services,Probrand Ltd,99923726,6.00,Computer Consumables,SMARTFORM
"Department for Business, Innovation and Skills",UK Shared Business Services Ltd,17/03/2023,Staff Training,HRSD Recoverables,Feldman Ltd T/A Brian Feldman and Associates,99924059,780.00,Training,SW15 5RH
"Department for Business, Innovation and Skills",UK Shared Business Services Ltd,17/03/2023,Staff Training,HRSD Recoverables,ASK Europe PLC,99924066,"1,008.00",Training,MK43 0BT
"Department for Business, Innovation and Skills",UK Shared Business Services Ltd,17/03/2023,Staff Training,HRSD Recoverables,ASK Europe PLC,99924069,"1,008.00",Training,MK43 0BT
"Department for Business, Innovation and Skills",UK Shared Business Services Ltd,17/03/2023,Staff Training,HRSD Recoverables,ASK Europe PLC,99924077,504.00,Training,MK43 0BT
"Department for Business, Innovation and Skills",UK Shared Business Services Ltd,17/03/2023,Staff Training,HRSD Recoverables,ASK Europe PLC,99924079,504.00,Training,MK43 0BT
"Department for Business, Innovation and Skills",UK Shared Business Services Ltd,17/03/2023,Staff Training,HRSD Recoverables,ASK Europe PLC,99924124,504.00,Training,MK43 0BT
"Department for Business, Innovation and Skills",UK Shared Business Services Ltd,17/03/2023,Staff Training,HRSD Recoverables,ASK Europe PLC,99924126,504.00,Training,MK43 0BT
"Department for Business, Innovation and Skills",UK Shared Business Services Ltd,17/03/2023,Staff Training,HRSD Recoverables,ASK Europe PLC,99924127,504.00,Training,MK43 0BT
"Department for Business, Innovation and Skills",UK Shared Business Services Ltd,17/03/2023,Staff Training,HRSD Recoverables,ASK Europe PLC,99924128,504.00,Training,MK43 0BT
"Department for Business, Innovation and Skills",UK Shared Business Services Ltd,17/03/2023,Conferences & Seminars,Corporate Finance,Unspecified,99925221,312.00,Conference/Course Fees (Actuals),HOME
"Department for Business, Innovation and Skills",UK Shared Business Services Ltd,17/03/2023,T&S - Parking Tolls Congestion Charges,D&I - Enterprise Applications,Unspecified,99925222,6.00,"Parking, Tolls, Congestion Charge",HOME
"Department for Business, Innovation and Skills",UK Shared Business Services Ltd,17/03/2023,T&S - Vehicle Hire,D&I Infrastructure & Network Services,Unspecified,99925223,20.00,Vehicle Hire/Rental/Fuel (Actuals),HOME
"Department for Business, Innovation and Skills",UK Shared Business Services Ltd,17/03/2023,T&S - Public Transport,Major Programmes,Unspecified,99925224,9.00,Public Transport - Taxi Fare (Actuals),HOME
"Department for Business, Innovation and Skills",UK Shared Business Services Ltd,17/03/2023,T&S - Public Transport,Major Programmes,Unspecified,99925224,6.70,Public Transport - Train (Actuals),HOME
"Department for Business, Innovation and Skills",UK Shared Business Services Ltd,17/03/2023,T&S - Subsistence,Major Programmes,Unspecified,99925224,13.45,Evening Meal (Actuals),HOME
"Department for Business, Innovation and Skills",UK Shared Business Services Ltd,17/03/2023,T&S - Subsistence,HR Training & Specialists,Unspecified,99925225,10.40,Lunch (Actuals),HOME
"Department for Business, Innovation and Skills",UK Shared Business Services Ltd,17/03/2023,Health & Safety (inc. Medicals & Opticians),HR Training & Specialists,Unspecified,99925226,55.00,Medical Fees & Vaccinations (Actuals),HOME
"Department for Business, Innovation and Skills",UK Shared Business Services Ltd,17/03/2023,T&S - Subsistence,Tier 1 ROE Transactions,Unspecified,99925227,13.25,Lunch (Actuals),HOME
"Department for Business, Innovation and Skills",UK Shared Business Services Ltd,17/03/2023,T&S - Subsistence,Tier 1 ROE Transactions,Unspecified,99925228,37.95,Evening Meal (Actuals),HOME
"Department for Business, Innovation and Skills",UK Shared Business Services Ltd,17/03/2023,T&S - Subsistence,Tier 1 ROE Transactions,Unspecified,99925228,24.19,Lunch (Actuals),HOME
"Department for Business, Innovation and Skills",UK Shared Business Services Ltd,17/03/2023,T&S - Parking Tolls Congestion Charges,Tier 1 ROE Transactions,Unspecified,99925229,10.00,"Parking, Tolls, Congestion Charge",HOME
"Department for Business, Innovation and Skills",UK Shared Business Services Ltd,17/03/2023,T&S - Subsistence,Tier 1 ROE Transactions,Unspecified,99925229,50.00,Evening Meal (Actuals),HOME
"Department for Business, Innovation and Skills",UK Shared Business Services Ltd,17/03/2023,T&S - Subsistence,Tier 1 ROE Transactions,Unspecified,99925229,20.25,Lunch (Actuals),HOME
"Department for Business, Innovation and Skills",UK Shared Business Services Ltd,17/03/2023,T&S - Vehicle Hire,Tier 1 ROE Transactions,Unspecified,99925229,87.02,Vehicle Hire/Rental/Fuel (Actuals),HOME
"Department for Business, Innovation and Skills",UK Shared Business Services Ltd,20/03/2023,Consultancy Services,Production Services,Elysian IT Ltd,99907870,"41,085.00",UKSBS Azure Cloud Support services,RG23 8PE
"Department for Business, Innovation and Skills",UK Shared Business Services Ltd,20/03/2023,GPC Clearing - SSC,Balance Sheet,Unspecified,99922731,-139.50,Unspecified,HOME
"Department for Business, Innovation and Skills",UK Shared Business Services Ltd,20/03/2023,Health & Safety (inc. Medicals & Opticians),Contact Centres,Unspecified,99922731,139.50,GPC_Health & Safety,HOME
"Department for Business, Innovation and Skills",UK Shared Business Services Ltd,20/03/2023,Hardware/Software Maintenance,Production Services,Boxxe Ltd,99923600,"5,735.74",Computing Software,YO31 7RE
"Department for Business, Innovation and Skills",UK Shared Business Services Ltd,20/03/2023,Hardware/Software Maintenance,Production Services,Boxxe Ltd,99923600,"12,410.21",Computing Software,YO31 7RE
"Department for Business, Innovation and Skills",UK Shared Business Services Ltd,20/03/2023,Recruitment Costs,Corporate HR,Agenda Resource Management Ltd,99923690,317.24,Professional Services,HU12 8YJ
"Department for Business, Innovation and Skills",UK Shared Business Services Ltd,20/03/2023,Staff Training,Category and Continuous Improvement,Cordie Ltd,99925275,"8,280.00",Training,BH25 6QJ
"Department for Business, Innovation and Skills",UK Shared Business Services Ltd,20/03/2023,Staff Training,Category and Continuous Improvement,Cordie Ltd,99925275,"19,500.00",Training,BH25 6QJ
"Department for Business, Innovation and Skills",UK Shared Business Services Ltd,20/03/2023,Staff Training,Category and Continuous Improvement,Cordie Ltd,99925275,"5,850.00",Training,BH25 6QJ
"Department for Business, Innovation and Skills",UK Shared Business Services Ltd,20/03/2023,Other Staff Benefits,People,Amazon EU SARL,99925579,500.00,ZZ-Employee Benefits,EC2A 2FA
"Department for Business, Innovation and Skills",UK Shared Business Services Ltd,20/03/2023,Contract Staff,Production Services,Alexander Mann Solutions Ltd,99926435,"2,648.52",Recruitment Services,EC2N 3AQ
"Department for Business, Innovation and Skills",UK Shared Business Services Ltd,20/03/2023,Contract Staff,SHARP,Alexander Mann Solutions Ltd,99926437,"3,387.66",Recruitment Services,EC2N 3AQ
"Department for Business, Innovation and Skills",UK Shared Business Services Ltd,20/03/2023,Contract Staff,Project Office,Alexander Mann Solutions Ltd,99926446,"2,402.14",Recruitment Services,EC2N 3AQ
"Department for Business, Innovation and Skills",UK Shared Business Services Ltd,20/03/2023,Contract Staff,Production Services,Alexander Mann Solutions Ltd,99926450,"2,740.74",Recruitment Services,EC2N 3AQ
"Department for Business, Innovation and Skills",UK Shared Business Services Ltd,20/03/2023,Contract Staff,People,Alexander Mann Solutions Ltd,99926471,"3,544.12",Recruitment Services,EC2N 3AQ
"Department for Business, Innovation and Skills",UK Shared Business Services Ltd,20/03/2023,Contract Staff,BOE Upgrade,Alexander Mann Solutions Ltd,99926488,"2,694.72",Recruitment Services,EC2N 3AQ
"Department for Business, Innovation and Skills",UK Shared Business Services Ltd,20/03/2023,VAT Input Tax Control (for UK VAT),Balance Sheet,Alexander Mann Solutions Ltd,99926488,538.94,Recruitment Services,EC2N 3AQ
"Department for Business, Innovation and Skills",UK Shared Business Services Ltd,20/03/2023,T&S - Mileage,Contact Centres,Unspecified,99926590,128.94,Mileage - Car (excl Home to Office),HOME
"Department for Business, Innovation and Skills",UK Shared Business Services Ltd,20/03/2023,T&S - Subsistence,Contact Centres,Unspecified,99926590,35.90,Evening Meal (Actuals),HOME
"Department for Business, Innovation and Skills",UK Shared Business Services Ltd,20/03/2023,T&S - Subsistence,Tier 1 BOE Transactions,Unspecified,99926591,33.45,Evening Meal (Actuals),HOME
"Department for Business, Innovation and Skills",UK Shared Business Services Ltd,20/03/2023,T&S - Subsistence,Tier 1 BOE Transactions,Unspecified,99926591,20.48,Lunch (Actuals),HOME
"Department for Business, Innovation and Skills",UK Shared Business Services Ltd,20/03/2023,T&S - Other Charges,Resourcing,Unspecified,99926592,83.94,Home-working Equipment,HOME
"Department for Business, Innovation and Skills",UK Shared Business Services Ltd,20/03/2023,T&S - Other Charges,Finance Operations 2,Unspecified,99926593,55.00,Miscellaneous (Actuals),HOME
"Department for Business, Innovation and Skills",UK Shared Business Services Ltd,20/03/2023,T&S - Parking Tolls Congestion Charges,Executive Function,Unspecified,99926594,13.30,"Parking, Tolls, Congestion Charge",HOME
"Department for Business, Innovation and Skills",UK Shared Business Services Ltd,20/03/2023,GPC Clearing - SSC,Balance Sheet,Unspecified,99926595,-47.00,Unspecified,HOME
"Department for Business, Innovation and Skills",UK Shared Business Services Ltd,20/03/2023,General Building Maintenance,Executive Function,Unspecified,99926595,47.00,GPC_General Building Maintenance,HOME
"Department for Business, Innovation and Skills",UK Shared Business Services Ltd,21/03/2023,Telecoms - Land Line Rental,Production Services,British Telecom Plc (BT),99897922,"2,928.50",SR 11518660 REGULAR CHARGES 01/02/23-28/02/23,S98 1BT
"Department for Business, Innovation and Skills",UK Shared Business Services Ltd,21/03/2023,Computer Software Licences,ERP Support,Uk Oracle User Group Limited,99902674,834.00,Computer Consumables,SE1 7AB
"Department for Business, Innovation and Skills",UK Shared Business Services Ltd,21/03/2023,Computing Consumables,Production Services,Reconome Technologies Ltd,99903155,"1,999.20",Computer Consumables,E11 3EH
"Department for Business, Innovation and Skills",UK Shared Business Services Ltd,21/03/2023,Computing Consumables,Production Services,Reconome Technologies Ltd,99903155,"10,425.60",Computer Consumables,E11 3EH
"Department for Business, Innovation and Skills",UK Shared Business Services Ltd,21/03/2023,Computing Consumables,Production Services,Reconome Technologies Ltd,99903155,937.20,Computer Consumables,E11 3EH
"Department for Business, Innovation and Skills",UK Shared Business Services Ltd,21/03/2023,Computing Consumables,Production Services,Reconome Technologies Ltd,99903155,"48,388.80",Computer Consumables,E11 3EH
"Department for Business, Innovation and Skills",UK Shared Business Services Ltd,21/03/2023,Health & Safety (inc. Medicals & Opticians),People,Circle Health Group Ltd,99923123,360.50,Professional Services,SK3 0XN
"Department for Business, Innovation and Skills",UK Shared Business Services Ltd,21/03/2023,T&S - Subsistence,HR Training & Specialists,Unspecified,99928144,11.45,Lunch (Actuals),HOME
"Department for Business, Innovation and Skills",UK Shared Business Services Ltd,21/03/2023,T&S - Other Charges,HR Training & Specialists,Unspecified,99928145,40.00,Miscellaneous (Actuals),HOME
"Department for Business, Innovation and Skills",UK Shared Business Services Ltd,21/03/2023,T&S - Mileage,D&I Infrastructure & Network Services,Unspecified,99928146,146.64,Mileage - Car (excl Home to Office),HOME
"Department for Business, Innovation and Skills",UK Shared Business Services Ltd,21/03/2023,T&S - Subsistence,D&I Infrastructure & Network Services,Unspecified,99928146,9.20,Lunch (Actuals),HOME
"Department for Business, Innovation and Skills",UK Shared Business Services Ltd,22/03/2023,Staff Training,HRSD Recoverables,Firebrand Training Ltd,99913868,"6,030.00",Training,WC1N 3AX
"Department for Business, Innovation and Skills",UK Shared Business Services Ltd,22/03/2023,Consultancy Services,Interfaces & API Mgmt,Software AG (UK) Ltd,99916925,"4,196.90",Computer Consumables,DE24 8BY
"Department for Business, Innovation and Skills",UK Shared Business Services Ltd,22/03/2023,Contract Staff,BOE Upgrade,Precision Resource Group Ltd T/A iO,99927344,"3,075.00",Recruitment Services,BS1 2NH
"Department for Business, Innovation and Skills",UK Shared Business Services Ltd,22/03/2023,VAT Input Tax Control (for UK VAT),Balance Sheet,Precision Resource Group Ltd T/A iO,99927344,615.00,Recruitment Services,BS1 2NH
"Department for Business, Innovation and Skills",UK Shared Business Services Ltd,22/03/2023,Contract Staff,Procurement Policy & Strategy,Hays Specialist Recruitment Ltd,99928330,"12,617.52",Recruitment Services,KT3 4QF
"Department for Business, Innovation and Skills",UK Shared Business Services Ltd,22/03/2023,Staff Training,HRSD Recoverables,ASK Europe PLC,99928341,504.00,Training,MK43 0BT
"Department for Business, Innovation and Skills",UK Shared Business Services Ltd,22/03/2023,Staff Training,HRSD Recoverables,ASK Europe PLC,99928344,840.00,Training,MK43 0BT
"Department for Business, Innovation and Skills",UK Shared Business Services Ltd,22/03/2023,Contract Staff,Systems Developments,Hays Specialist Recruitment Ltd,99928368,"16,141.68",Recruitment Services,KT3 4QF
"Department for Business, Innovation and Skills",UK Shared Business Services Ltd,22/03/2023,Computer Hardware,Production Services,Probrand Ltd,99928370,302.40,Computing Hardware,SMARTFORM
"Department for Business, Innovation and Skills",UK Shared Business Services Ltd,22/03/2023,Computer Hardware,Production Services,Probrand Ltd,99928370,2.40,Computing Hardware,SMARTFORM
"Department for Business, Innovation and Skills",UK Shared Business Services Ltd,22/03/2023,Agency Staff,Resourcing,Hays Specialist Recruitment Ltd,99928373,"2,409.48",Recruitment Services,KT3 4QF
"Department for Business, Innovation and Skills",UK Shared Business Services Ltd,22/03/2023,Agency Staff,Tier 1 BOE Transactions,Hays Specialist Recruitment Ltd,99928414,"2,011.39",Recruitment Services,KT3 4QF
"Department for Business, Innovation and Skills",UK Shared Business Services Ltd,22/03/2023,Contract Staff,Project Office,Hays Specialist Recruitment Ltd,99928421,"14,143.07",Recruitment Services,KT3 4QF
"Department for Business, Innovation and Skills",UK Shared Business Services Ltd,22/03/2023,Contract Staff,Project Office,Hays Specialist Recruitment Ltd,99928422,"13,398.70",Recruitment Services,KT3 4QF
"Department for Business, Innovation and Skills",UK Shared Business Services Ltd,22/03/2023,Agency Staff,HR Ops,Hays Specialist Recruitment Ltd,99928423,"3,100.80",Recruitment Services,KT3 4QF
"Department for Business, Innovation and Skills",UK Shared Business Services Ltd,22/03/2023,Agency Staff,HR Training & Specialists,Hays Specialist Recruitment Ltd,99928424,"2,409.48",Recruitment Services,KT3 4QF
"Department for Business, Innovation and Skills",UK Shared Business Services Ltd,22/03/2023,Agency Staff,Tier 1 BOE Transactions,Hays Specialist Recruitment Ltd,99928425,"2,199.96",Recruitment Services,KT3 4QF
"Department for Business, Innovation and Skills",UK Shared Business Services Ltd,22/03/2023,Agency Staff,Resourcing,Hays Specialist Recruitment Ltd,99928426,"2,811.67",Recruitment Services,KT3 4QF
"Department for Business, Innovation and Skills",UK Shared Business Services Ltd,22/03/2023,Contract Staff,Procurement Policy & Strategy,Hays Specialist Recruitment Ltd,99928467,"13,291.78",Recruitment Services,KT3 4QF
"Department for Business, Innovation and Skills",UK Shared Business Services Ltd,22/03/2023,Agency Staff,Contact Centres,Hays Specialist Recruitment Ltd,99928474,"2,797.09",Recruitment Services,KT3 4QF
"Department for Business, Innovation and Skills",UK Shared Business Services Ltd,22/03/2023,Contract Staff,Procurement Policy & Strategy,Hays Specialist Recruitment Ltd,99928476,"13,828.54",Recruitment Services,KT3 4QF
"Department for Business, Innovation and Skills",UK Shared Business Services Ltd,22/03/2023,Agency Staff,HR Ops,Hays Specialist Recruitment Ltd,99928493,"2,015.52",Recruitment Services,KT3 4QF
"Department for Business, Innovation and Skills",UK Shared Business Services Ltd,22/03/2023,Agency Staff,HR Ops,Hays Specialist Recruitment Ltd,99928494,"3,255.84",Recruitment Services,KT3 4QF
"Department for Business, Innovation and Skills",UK Shared Business Services Ltd,22/03/2023,T&S - Mileage,Operational Excellence,Unspecified,99928587,54.00,Mileage - Car (excl Home to Office),HOME
"Department for Business, Innovation and Skills",UK Shared Business Services Ltd,22/03/2023,T&S - Parking Tolls Congestion Charges,Operational Excellence,Unspecified,99928587,12.00,"Parking, Tolls, Congestion Charge",HOME
"Department for Business, Innovation and Skills",UK Shared Business Services Ltd,22/03/2023,T&S - Subsistence,Operational Excellence,Unspecified,99928587,49.64,Evening Meal (Actuals),HOME
"Department for Business, Innovation and Skills",UK Shared Business Services Ltd,22/03/2023,T&S - Vehicle Hire,Operational Excellence,Unspecified,99928587,96.04,Vehicle Hire/Rental/Fuel (Actuals),HOME
"Department for Business, Innovation and Skills",UK Shared Business Services Ltd,22/03/2023,T&S - Mileage,Tier 1 ROE Transactions,Unspecified,99928588,492.75,Mileage - Car (excl Home to Office),HOME
"Department for Business, Innovation and Skills",UK Shared Business Services Ltd,22/03/2023,T&S - Subsistence,Tier 1 ROE Transactions,Unspecified,99928588,72.75,Evening Meal (Actuals),HOME
"Department for Business, Innovation and Skills",UK Shared Business Services Ltd,22/03/2023,T&S - Subsistence,Tier 1 ROE Transactions,Unspecified,99928588,19.15,Lunch (Actuals),HOME
"Department for Business, Innovation and Skills",UK Shared Business Services Ltd,22/03/2023,T&S - Parking Tolls Congestion Charges,Finance Operations 1,Unspecified,99928589,10.00,"Parking, Tolls, Congestion Charge",HOME
"Department for Business, Innovation and Skills",UK Shared Business Services Ltd,22/03/2023,T&S - Public Transport,Tier 1 BOE Transactions,Unspecified,99928590,29.10,Public Transport - Taxi Fare (Actuals),HOME
"Department for Business, Innovation and Skills",UK Shared Business Services Ltd,22/03/2023,T&S - Subsistence,Tier 1 BOE Transactions,Unspecified,99928590,33.25,Evening Meal (Actuals),HOME
"Department for Business, Innovation and Skills",UK Shared Business Services Ltd,22/03/2023,T&S - Subsistence,Tier 1 BOE Transactions,Unspecified,99928590,12.85,Lunch (Actuals),HOME
"Department for Business, Innovation and Skills",UK Shared Business Services Ltd,23/03/2023,Computer Software Licences,ERP Support,GitHub Inc,99904638,"16,885.55",GitHub Enterprise x 80 Seats,94107 - USD
"Department for Business, Innovation and Skills",UK Shared Business Services Ltd,23/03/2023,Computer Software,Production Services,IB Boost Ltd,99926823,"2,956.51",Computing Software,EC2A 4NE
"Department for Business, Innovation and Skills",UK Shared Business Services Ltd,23/03/2023,Agency Staff,Finance Operations 2,Hays Specialist Recruitment Ltd,99927509,"1,246.64",Recruitment Services,KT3 4QF
"Department for Business, Innovation and Skills",UK Shared Business Services Ltd,23/03/2023,Agency Staff,Finance Operations 2,Hays Specialist Recruitment Ltd,99927514,"2,933.28",Recruitment Services,KT3 4QF
"Department for Business, Innovation and Skills",UK Shared Business Services Ltd,23/03/2023,Agency Staff,Finance Operations 2,Hays Specialist Recruitment Ltd,99927515,"3,195.18",Recruitment Services,KT3 4QF
"Department for Business, Innovation and Skills",UK Shared Business Services Ltd,23/03/2023,Agency Staff,Finance Operations 2,Hays Specialist Recruitment Ltd,99927517,"2,042.82",Recruitment Services,KT3 4QF
"Department for Business, Innovation and Skills",UK Shared Business Services Ltd,23/03/2023,Recruitment Costs,Project Office,Hays Specialist Recruitment Ltd,99927524,"9,408.00",Recruitment Services,KT3 4QF
"Department for Business, Innovation and Skills",UK Shared Business Services Ltd,23/03/2023,Other Staff Benefits,People,Health Assured Ltd,99927609,169.20,Professional Services,M4 4FB
"Department for Business, Innovation and Skills",UK Shared Business Services Ltd,23/03/2023,Agency Staff,HR Ops,Hays Specialist Recruitment Ltd,99928495,"2,635.68",Recruitment Services,KT3 4QF
"Department for Business, Innovation and Skills",UK Shared Business Services Ltd,23/03/2023,Agency Staff,Tier 1 BOE Transactions,Hays Specialist Recruitment Ltd,99928500,"1,461.40",Recruitment Services,KT3 4QF
"Department for Business, Innovation and Skills",UK Shared Business Services Ltd,23/03/2023,Agency Staff,Tier 1 BOE Transactions,Hays Specialist Recruitment Ltd,99928500,0.01,ROUNDING - FINAL INVOICE -W/E 16/12/22 TO W/E 30/12/22,KT3 4QF
"Department for Business, Innovation and Skills",UK Shared Business Services Ltd,23/03/2023,Computer Software,Production Services,Phoenix Software Ltd,99928529,255.60,Computing Software,YO42 1NS
"Department for Business, Innovation and Skills",UK Shared Business Services Ltd,23/03/2023,T&S - Mileage,Accounting,Unspecified,99929134,63.00,Mileage - Car (excl Home to Office),HOME
"Department for Business, Innovation and Skills",UK Shared Business Services Ltd,23/03/2023,T&S - Subsistence,Accounting,Unspecified,99929134,10.60,Lunch (Actuals),HOME
"Department for Business, Innovation and Skills",UK Shared Business Services Ltd,24/03/2023,Computer Software Licences,ERP Support,Oracle Corporation UK Ltd,99927527,"34,826.87",A.1SupplementalResources a. Annual Senior Advanced Support Engineer for Software twenty (20) days,RG6 1RA
"Department for Business, Innovation and Skills",UK Shared Business Services Ltd,24/03/2023,Staff Training,HRSD Recoverables,ASK Europe PLC,99928816,-840.00,Training,MK43 0BT
"Department for Business, Innovation and Skills",UK Shared Business Services Ltd,24/03/2023,Staff Training,HRSD Recoverables,ASK Europe PLC,99928817,840.00,Training,MK43 0BT
"Department for Business, Innovation and Skills",UK Shared Business Services Ltd,24/03/2023,Consultancy Services,General Capital,JFDI Consulting Ltd,99928872,400.00,UK SBS 'The Bridge' Investigations Investigation & Consultancy Services DATE 5 January 2023 VALID UNTIL 5 April 2023 at 10:00 AM,W1W 5PF
"Department for Business, Innovation and Skills",UK Shared Business Services Ltd,24/03/2023,Recruitment Costs,Corporate HR,Agenda Resource Management Ltd,99929008,390.61,Professional Services,HU12 8YJ
"Department for Business, Innovation and Skills",UK Shared Business Services Ltd,24/03/2023,Staff Training,HRSD Recoverables,ASK Europe PLC,99929307,"1,008.00",Training,MK43 0BT
"Department for Business, Innovation and Skills",UK Shared Business Services Ltd,24/03/2023,Staff Training,HRSD Recoverables,ASK Europe PLC,99929323,504.00,Training,MK43 0BT
"Department for Business, Innovation and Skills",UK Shared Business Services Ltd,24/03/2023,Staff Training,HRSD Recoverables,ASK Europe PLC,99929363,840.00,Training,MK43 0BT
"Department for Business, Innovation and Skills",UK Shared Business Services Ltd,24/03/2023,T&S - Other Charges,D&I - Enterprise Applications,Unspecified,99929541,176.67,Home-working Equipment,HOME
"Department for Business, Innovation and Skills",UK Shared Business Services Ltd,24/03/2023,Education Fees & Study Materials,Core Services,Unspecified,99929542,195.00,Educational Materials - Study Books,HOME
"Department for Business, Innovation and Skills",UK Shared Business Services Ltd,24/03/2023,T&S - Parking Tolls Congestion Charges,Operational Excellence,Unspecified,99929543,10.00,"Parking, Tolls, Congestion Charge",HOME
"Department for Business, Innovation and Skills",UK Shared Business Services Ltd,24/03/2023,Contract Staff,BOE Upgrade,Precision Resource Group Ltd T/A iO,99929768,"6,765.00",Recruitment Services,BS1 2NH
"Department for Business, Innovation and Skills",UK Shared Business Services Ltd,24/03/2023,VAT Input Tax Control (for UK VAT),Balance Sheet,Precision Resource Group Ltd T/A iO,99929768,"1,353.00",Recruitment Services,BS1 2NH
"Department for Business, Innovation and Skills",UK Shared Business Services Ltd,24/03/2023,Agency Staff,Contact Centres,Hays Specialist Recruitment Ltd,99929852,"2,755.19",Recruitment Services,KT3 4QF
"Department for Business, Innovation and Skills",UK Shared Business Services Ltd,24/03/2023,Contract Staff,Procurement Policy & Strategy,Hays Specialist Recruitment Ltd,99929857,"12,040.28",Recruitment Services,KT3 4QF
"Department for Business, Innovation and Skills",UK Shared Business Services Ltd,24/03/2023,Agency Staff,Tier 1 BOE Transactions,Hays Specialist Recruitment Ltd,99929860,"2,639.95",Recruitment Services,KT3 4QF
"Department for Business, Innovation and Skills",UK Shared Business Services Ltd,24/03/2023,Contract Staff,Production Services,Hays Specialist Recruitment Ltd,99929931,"2,922.80",Recruitment Services,KT3 4QF
"Department for Business, Innovation and Skills",UK Shared Business Services Ltd,27/03/2023,Agency Staff,Contact Centres,Hays Specialist Recruitment Ltd,99919907,"3,058.99",Recruitment Services,KT3 4QF
"Department for Business, Innovation and Skills",UK Shared Business Services Ltd,27/03/2023,Agency Staff,Contact Centres,Hays Specialist Recruitment Ltd,99928473,"2,734.24",Recruitment Services,KT3 4QF
"Department for Business, Innovation and Skills",UK Shared Business Services Ltd,27/03/2023,GPC Clearing - SSC,Balance Sheet,Unspecified,99929129,-208.67,Unspecified,HOME
"Department for Business, Innovation and Skills",UK Shared Business Services Ltd,27/03/2023,GPC Sundry Expenditure,ISS Recoverables - EPSRC,Unspecified,99929129,208.67,GPC_Miscellaneous GPC Expenditure,HOME
"Department for Business, Innovation and Skills",UK Shared Business Services Ltd,27/03/2023,GPC Clearing - SSC,Balance Sheet,Unspecified,99929130,-40.49,Unspecified,HOME
"Department for Business, Innovation and Skills",UK Shared Business Services Ltd,27/03/2023,GPC Sundry Expenditure,ISS Recoverables - EPSRC,Unspecified,99929130,40.49,GPC_Miscellaneous GPC Expenditure,HOME
"Department for Business, Innovation and Skills",UK Shared Business Services Ltd,27/03/2023,GPC Clearing - SSC,Balance Sheet,Unspecified,99929131,-44.78,Unspecified,HOME
"Department for Business, Innovation and Skills",UK Shared Business Services Ltd,27/03/2023,GPC Sundry Expenditure,Production Services,Unspecified,99929131,44.78,GPC_Miscellaneous GPC Expenditure,HOME
"Department for Business, Innovation and Skills",UK Shared Business Services Ltd,27/03/2023,GPC Clearing - SSC,Balance Sheet,Unspecified,99929132,-49.17,Unspecified,HOME
"Department for Business, Innovation and Skills",UK Shared Business Services Ltd,27/03/2023,Hardware/Software Maintenance,Production Services,Unspecified,99929132,49.17,GPC_Computer Hardware/Software Maint,HOME
"Department for Business, Innovation and Skills",UK Shared Business Services Ltd,27/03/2023,GPC Clearing - SSC,Balance Sheet,Unspecified,99929133,-51.98,Unspecified,HOME
"Department for Business, Innovation and Skills",UK Shared Business Services Ltd,27/03/2023,GPC Sundry Expenditure,Production Services,Unspecified,99929133,51.98,GPC_Miscellaneous GPC Expenditure,HOME
"Department for Business, Innovation and Skills",UK Shared Business Services Ltd,27/03/2023,Staff Training,Category and Continuous Improvement,Cordie Ltd,99929477,"3,900.00",Training,BH25 6QJ
"Department for Business, Innovation and Skills",UK Shared Business Services Ltd,27/03/2023,Staff Training,Category and Continuous Improvement,Cordie Ltd,99929477,"2,925.00",Training,BH25 6QJ
"Department for Business, Innovation and Skills",UK Shared Business Services Ltd,27/03/2023,Contract Staff,People,Alexander Mann Solutions Ltd,99929640,"2,126.47",Recruitment Services,EC2N 3AQ
"Department for Business, Innovation and Skills",UK Shared Business Services Ltd,27/03/2023,International Subscriptions,Procurement Policy & Strategy,Experian Ltd,99930196,"3,000.00",ZZ-Memberships,NG80 1ZZ
"Department for Business, Innovation and Skills",UK Shared Business Services Ltd,27/03/2023,Contract Staff,BOE Upgrade,Precision Resource Group Ltd T/A iO,99930859,"3,075.00",Recruitment Services,BS1 2NH
"Department for Business, Innovation and Skills",UK Shared Business Services Ltd,27/03/2023,VAT Input Tax Control (for UK VAT),Balance Sheet,Precision Resource Group Ltd T/A iO,99930859,615.00,Recruitment Services,BS1 2NH
"Department for Business, Innovation and Skills",UK Shared Business Services Ltd,27/03/2023,Contract Staff,Production Services,Alexander Mann Solutions Ltd,99930863,"2,648.52",Recruitment Services,EC2N 3AQ
"Department for Business, Innovation and Skills",UK Shared Business Services Ltd,27/03/2023,Contract Staff,SHARP,Alexander Mann Solutions Ltd,99930864,"3,387.66",Recruitment Services,EC2N 3AQ
"Department for Business, Innovation and Skills",UK Shared Business Services Ltd,27/03/2023,Contract Staff,Production Services,Alexander Mann Solutions Ltd,99930865,"2,740.74",Recruitment Services,EC2N 3AQ
"Department for Business, Innovation and Skills",UK Shared Business Services Ltd,27/03/2023,Contract Staff,Project Office,Alexander Mann Solutions Ltd,99930872,"2,402.14",Recruitment Services,EC2N 3AQ
"Department for Business, Innovation and Skills",UK Shared Business Services Ltd,27/03/2023,Contract Staff,BOE Upgrade,Alexander Mann Solutions Ltd,99930903,"2,502.24",Recruitment Services,EC2N 3AQ
"Department for Business, Innovation and Skills",UK Shared Business Services Ltd,27/03/2023,VAT Input Tax Control (for UK VAT),Balance Sheet,Alexander Mann Solutions Ltd,99930903,500.45,Recruitment Services,EC2N 3AQ
"Department for Business, Innovation and Skills",UK Shared Business Services Ltd,27/03/2023,Contract Staff,Production Services,Alexander Mann Solutions Ltd,99930906,"8,180.88",Recruitment Services,EC2N 3AQ
"Department for Business, Innovation and Skills",UK Shared Business Services Ltd,27/03/2023,Hardware/Software Maintenance,Production Services,CDW Ltd,99931084,"10,821.02",Hardware Service Support - Cisco Servicenet - description as per Quote,SWAREHOUSEONLY
"Department for Business, Innovation and Skills",UK Shared Business Services Ltd,27/03/2023,T&S - Subsistence,Project Office,Unspecified,99931265,24.85,Lunch (Actuals),HOME
"Department for Business, Innovation and Skills",UK Shared Business Services Ltd,27/03/2023,T&S - Other Charges,Contact Centres,Unspecified,99931266,15.70,Miscellaneous (Actuals),HOME
"Department for Business, Innovation and Skills",UK Shared Business Services Ltd,27/03/2023,T&S - Subsistence,Contact Centres,Unspecified,99931266,9.45,Lunch (Actuals),HOME
"Department for Business, Innovation and Skills",UK Shared Business Services Ltd,27/03/2023,Conferences & Seminars,SIAM,Unspecified,99931267,192.00,Conference/Course Fees (Actuals),HOME
"Department for Business, Innovation and Skills",UK Shared Business Services Ltd,27/03/2023,T&S - Mileage,Accounting,Unspecified,99931268,54.00,Mileage - Car (excl Home to Office),HOME
"Department for Business, Innovation and Skills",UK Shared Business Services Ltd,27/03/2023,T&S - Subsistence,HR Ops,Unspecified,99931269,25.00,Evening Meal (Actuals),HOME
"Department for Business, Innovation and Skills",UK Shared Business Services Ltd,27/03/2023,T&S - Subsistence,HR Ops,Unspecified,99931269,6.34,Lunch (Actuals),HOME
"Department for Business, Innovation and Skills",UK Shared Business Services Ltd,27/03/2023,T&S - Vehicle Hire,HR Ops,Unspecified,99931269,103.01,Vehicle Hire/Rental/Fuel (Actuals),HOME
"Department for Business, Innovation and Skills",UK Shared Business Services Ltd,28/03/2023,Computing Consumables,SIAM,Phoenix Software Ltd,99896353,"14,730.84",Computer Consumables,YO42 1NS
"Department for Business, Innovation and Skills",UK Shared Business Services Ltd,28/03/2023,IT Cloud Services,Production Services,FlyForm Ltd,99905360,"4,999.20",Computing Software,CF10 3AG
"Department for Business, Innovation and Skills",UK Shared Business Services Ltd,28/03/2023,3rd party IT Services,Production Services,Crown Hosting Data Centres Ltd,99923654,"35,322.97",Computing Hardware,SN13 9GB
"Department for Business, Innovation and Skills",UK Shared Business Services Ltd,28/03/2023,3rd party IT Services,Production Services,Crown Hosting Data Centres Ltd,99928056,"3,794.65",Computing Hardware,SN13 9GB
"Department for Business, Innovation and Skills",UK Shared Business Services Ltd,28/03/2023,Hardware/Software Maintenance,Production Services,Chess Cybersecurity Ltd,99929463,"1,166.40",Computing Software,SK9 7JP
"Department for Business, Innovation and Skills",UK Shared Business Services Ltd,28/03/2023,IT Cloud Services,Production Services,Academia Ltd,99930248,"3,084.60",Computing Software,HP2 7DW
"Department for Business, Innovation and Skills",UK Shared Business Services Ltd,28/03/2023,T&S - Other Charges,Executive Function,Unspecified,99930584,18.95,Home-working Equipment,HOME
"Department for Business, Innovation and Skills",UK Shared Business Services Ltd,28/03/2023,T&S - Mileage,SIAM,Unspecified,99930585,27.00,Mileage - Car (excl Home to Office),HOME
"Department for Business, Innovation and Skills",UK Shared Business Services Ltd,28/03/2023,T&S - Subsistence,Operational Excellence,Unspecified,99930586,25.00,Evening Meal (Actuals),HOME
"Department for Business, Innovation and Skills",UK Shared Business Services Ltd,28/03/2023,T&S - Subsistence,Operational Excellence,Unspecified,99930587,24.64,Evening Meal (Actuals),HOME
"Department for Business, Innovation and Skills",UK Shared Business Services Ltd,28/03/2023,T&S - Subsistence,Operational Excellence,Unspecified,99930587,19.45,Lunch (Actuals),HOME
"Department for Business, Innovation and Skills",UK Shared Business Services Ltd,28/03/2023,T&S - Subsistence,Accounting,Unspecified,99930588,6.96,Breakfast (Actuals),HOME
"Department for Business, Innovation and Skills",UK Shared Business Services Ltd,28/03/2023,T&S - Subsistence,Accounting,Unspecified,99930588,34.40,Evening Meal (Actuals),HOME
"Department for Business, Innovation and Skills",UK Shared Business Services Ltd,28/03/2023,T&S - Subsistence,Accounting,Unspecified,99930588,18.34,Lunch (Actuals),HOME
"Department for Business, Innovation and Skills",UK Shared Business Services Ltd,28/03/2023,Staff Training,HRSD Recoverables,ASK Europe PLC,99931695,"1,008.00",Training,MK43 0BT
"Department for Business, Innovation and Skills",UK Shared Business Services Ltd,29/03/2023,Computer Software,SIAM,More4Apps UK Limited,99877666,"3,644.40",Computing Software,GU2 8XG
"Department for Business, Innovation and Skills",UK Shared Business Services Ltd,29/03/2023,Computer Software,SIAM,More4Apps UK Limited,99877666,"8,829.60",Computing Software,GU2 8XG
"Department for Business, Innovation and Skills",UK Shared Business Services Ltd,29/03/2023,Computer Software,SIAM,More4Apps UK Limited,99877666,"2,848.80",Computing Software,GU2 8XG
"Department for Business, Innovation and Skills",UK Shared Business Services Ltd,29/03/2023,Legal & Professional Services,People,LNRS Data Services Ltd,99924068,"9,192.00",Professional Services,SM2 5AS GBP
"Department for Business, Innovation and Skills",UK Shared Business Services Ltd,29/03/2023,Contract Staff,Production Services,Alexander Mann Solutions Ltd,99926493,"1,231.85",Recruitment Services,EC2N 3AQ
"Department for Business, Innovation and Skills",UK Shared Business Services Ltd,29/03/2023,Consultancy Services,Interfaces & API Mgmt,Software AG (UK) Ltd,99931716,"17,226.82",Computer Consumables,DE24 8BY
"Department for Business, Innovation and Skills",UK Shared Business Services Ltd,29/03/2023,Staff Training,HRSD Recoverables,ASK Europe PLC,99932549,"1,008.00",Training,MK43 0BT
"Department for Business, Innovation and Skills",UK Shared Business Services Ltd,29/03/2023,Purchase of non capital equipment,Finance Services,Graham Popple T/A G P Removals,99932609,90.00,Removal of furniture on 24-8-22,TS19 0XX
"Department for Business, Innovation and Skills",UK Shared Business Services Ltd,29/03/2023,Staff Training,HRSD Recoverables,ASK Europe PLC,99932803,504.00,Training,MK43 0BT
"Department for Business, Innovation and Skills",UK Shared Business Services Ltd,29/03/2023,External Audit Fees,Corporate Finance,National Audit Office,99932817,"34,800.00",Professional Services Other,SW1W 9SP
"Department for Business, Innovation and Skills",UK Shared Business Services Ltd,29/03/2023,T&S - Subsistence,Accounting,Unspecified,99933773,35.15,Evening Meal (Actuals),HOME
"Department for Business, Innovation and Skills",UK Shared Business Services Ltd,29/03/2023,T&S - Subsistence,Accounting,Unspecified,99933773,12.99,Lunch (Actuals),HOME
"Department for Business, Innovation and Skills",UK Shared Business Services Ltd,29/03/2023,T&S - Vehicle Hire,Accounting,Unspecified,99933773,84.20,Vehicle Hire/Rental/Fuel (Actuals),HOME
"Department for Business, Innovation and Skills",UK Shared Business Services Ltd,29/03/2023,T&S - Subsistence,Resourcing,Unspecified,99933774,18.20,Evening Meal (Actuals),HOME
"Department for Business, Innovation and Skills",UK Shared Business Services Ltd,29/03/2023,T&S - Subsistence,Resourcing,Unspecified,99933774,8.40,Lunch (Actuals),HOME
"Department for Business, Innovation and Skills",UK Shared Business Services Ltd,29/03/2023,T&S - Vehicle Hire,Resourcing,Unspecified,99933774,49.35,Vehicle Hire/Rental/Fuel (Actuals),HOME
"Department for Business, Innovation and Skills",UK Shared Business Services Ltd,29/03/2023,T&S - Subsistence,HR Ops,Unspecified,99933775,19.28,Evening Meal (Actuals),HOME
"Department for Business, Innovation and Skills",UK Shared Business Services Ltd,29/03/2023,T&S - Subsistence,Finance Operations 1,Unspecified,99933776,16.45,Evening Meal (Actuals),HOME
"Department for Business, Innovation and Skills",UK Shared Business Services Ltd,29/03/2023,T&S - Vehicle Hire,Finance Operations 1,Unspecified,99933776,56.50,Vehicle Hire/Rental/Fuel (Actuals),HOME
"Department for Business, Innovation and Skills",UK Shared Business Services Ltd,30/03/2023,Consultancy Services,Production Services,Fortay Connect Ltd,99843371,"2,700.00",Computer Consumables,SK3 8SP
"Department for Business, Innovation and Skills",UK Shared Business Services Ltd,30/03/2023,Consultancy Services,Production Services,Fortay Connect Ltd,99843371,"2,700.00",Computer Consumables,SK3 8SP
"Department for Business, Innovation and Skills",UK Shared Business Services Ltd,30/03/2023,Consultancy Services,Production Services,Fortay Connect Ltd,99843371,"1,800.00",Computer Consumables,SK3 8SP
"Department for Business, Innovation and Skills",UK Shared Business Services Ltd,30/03/2023,Consultancy Services,Production Services,Fortay Connect Ltd,99843371,"1,800.00",Computer Consumables,SK3 8SP
"Department for Business, Innovation and Skills",UK Shared Business Services Ltd,30/03/2023,Consultancy Services,Production Services,Simpson Associates Information Services Ltd,99915733,"8,790.00",UK SBS Power BI Embedded Services &Consultancy,York
"Department for Business, Innovation and Skills",UK Shared Business Services Ltd,30/03/2023,Recruitment Costs,Production Services,Hays Specialist Recruitment Ltd,99928515,"6,495.12",Recruitment Services,KT3 4QF
"Department for Business, Innovation and Skills",UK Shared Business Services Ltd,30/03/2023,Computer Hardware,Production Services,Curvature Solutions Ltd,99933061,"2,832.00",Computer Consumables,B45 9PZ
"Department for Business, Innovation and Skills",UK Shared Business Services Ltd,30/03/2023,Recruitment Costs,Production Services,Robert Half Ltd,99933144,"9,405.00",Recruitment Services,B37 7GN
"Department for Business, Innovation and Skills",UK Shared Business Services Ltd,30/03/2023,T&S - Public Transport,DDaT,Unspecified,99933230,44.00,Public Transport - Taxi Fare (Actuals),HOME
"Department for Business, Innovation and Skills",UK Shared Business Services Ltd,31/03/2023,Computing Consumables,Production Services,Probrand Ltd,99925492,112.48,Computer Consumables,SMARTFORM
"Department for Business, Innovation and Skills",UK Shared Business Services Ltd,31/03/2023,Computing Consumables,Production Services,Probrand Ltd,99925492,6.00,Computer Consumables,SMARTFORM
"Department for Business, Innovation and Skills",UK Shared Business Services Ltd,31/03/2023,Agency Staff,Finance Operations 1,Hays Specialist Recruitment Ltd,99928353,"3,100.90",Recruitment Services,KT3 4QF
"Department for Business, Innovation and Skills",UK Shared Business Services Ltd,31/03/2023,Agency Staff,Tier 1 ROE Transactions,Hays Specialist Recruitment Ltd,99929874,775.22,Recruitment Services,KT3 4QF
"Department for Business, Innovation and Skills",UK Shared Business Services Ltd,31/03/2023,Computer Hardware,Production Services,Dell Corporation Ltd,99931905,"208,320.00",Computing Hardware,SWAREHOUSEONLY
"Department for Business, Innovation and Skills",UK Shared Business Services Ltd,31/03/2023,Computing Consumables,SIAM,Phoenix Software Ltd,99932765,"17,043.84",Computer Consumables,YO42 1NS
"Department for Business, Innovation and Skills",UK Shared Business Services Ltd,31/03/2023,Computing Consumables,Production Services,Probrand Ltd,99934356,118.80,Computer Consumables,SMARTFORM
"Department for Business, Innovation and Skills",UK Shared Business Services Ltd,31/03/2023,T&S - Other Charges,HR Training & Specialists,Unspecified,99934547,18.69,Home-working Equipment,HOME
"Department for Business, Innovation and Skills",UK Shared Business Services Ltd,31/03/2023,T&S - Other Charges,HR Training & Specialists,Unspecified,99934547,55.00,Miscellaneous (Actuals),HOME
"Department for Business, Innovation and Skills",UK Shared Business Services Ltd,31/03/2023,T&S - Public Transport,HR Training & Specialists,Unspecified,99934547,20.00,Public Transport - Taxi Fare (Actuals),HOME
"Department for Business, Innovation and Skills",UK Shared Business Services Ltd,31/03/2023,T&S - Subsistence,HR Training & Specialists,Unspecified,99934547,81.85,Evening Meal (Actuals),HOME
"Department for Business, Innovation and Skills",UK Shared Business Services Ltd,31/03/2023,T&S - Subsistence,HR Training & Specialists,Unspecified,99934547,10.20,Lunch (Actuals),HOME
"Department for Business, Innovation and Skills",UK Shared Business Services Ltd,31/03/2023,T&S - Subsistence,Accounting,Unspecified,99934548,7.50,Breakfast (Actuals),HOME
"Department for Business, Innovation and Skills",UK Shared Business Services Ltd,31/03/2023,T&S - Subsistence,Accounting,Unspecified,99934548,13.95,Evening Meal (Actuals),HOME
"Department for Business, Innovation and Skills",UK Shared Business Services Ltd,31/03/2023,T&S - Subsistence,Accounting,Unspecified,99934548,22.34,Lunch (Actuals),HOME
"Department for Business, Innovation and Skills",UK Shared Business Services Ltd,31/03/2023,T&S - Parking Tolls Congestion Charges,Executive Function,Unspecified,99934550,34.40,"Parking, Tolls, Congestion Charge",HOME
"Department for Business, Innovation and Skills",UK Shared Business Services Ltd,31/03/2023,Education Fees & Study Materials,Systems Support,Unspecified,99934551,225.00,Educational Materials - Study Books,HOME
"Department for Business, Innovation and Skills",UK Shared Business Services Ltd,31/03/2023,T&S - Subsistence,Finance Operations 2,Unspecified,99934552,32.65,Evening Meal (Actuals),HOME
"Department for Business, Innovation and Skills",UK Shared Business Services Ltd,31/03/2023,T&S - Subsistence,Finance Operations 2,Unspecified,99934552,17.64,Lunch (Actuals),HOME
"Department for Business, Innovation and Skills",UK Shared Business Services Ltd,31/03/2023,T&S - Vehicle Hire,Construction,Unspecified,99934553,115.20,Vehicle Hire/Rental/Fuel (Actuals),HOME
"Department for Business, Innovation and Skills",UK Shared Business Services Ltd,31/03/2023,T&S - Subsistence,Resourcing,Unspecified,99934554,14.50,Evening Meal (Actuals),HOME
"Department for Business, Innovation and Skills",UK Shared Business Services Ltd,31/03/2023,T&S - Subsistence,Resourcing,Unspecified,99934554,16.05,Lunch (Actuals),HOME
"Department for Business, Innovation and Skills",UK Shared Business Services Ltd,31/03/2023,T&S - Vehicle Hire,Resourcing,Unspecified,99934554,36.13,Vehicle Hire/Rental/Fuel (Actuals),HOME
"Department for Business, Innovation and Skills",UK Shared Business Services Ltd,31/03/2023,T&S - Parking Tolls Congestion Charges,Category and Continuous Improvement,Unspecified,99934555,30.00,"Parking, Tolls, Congestion Charge",HOME
"Department for Business, Innovation and Skills",UK Shared Business Services Ltd,31/03/2023,Corporate Events,Executive Function,Calder Conference Ltd,99934780,"2,340.00",Conference & Venues,LS16 6RF
"Department for Business, Innovation and Skills",UK Shared Business Services Ltd,07/03/2023,Bank Charges,Corporate Finance,,,170.00,Bank Charges,
"Department for Business, Innovation and Skills",UK Shared Business Services Ltd,01/03/2023,Bank Charges,Corporate Finance,,,105.80,Bank Charges,
"Department for Business, Innovation and Skills",UK Shared Business Services Ltd,27/03/2023,Bank Charges,Corporate Finance,,,-9.00,Bank Charges,
"Department for Business, Innovation and Skills",UK Shared Business Services Ltd,27/03/2023,Bank Charges,Corporate Finance,,,-1.60,Bank Charges,
"Department for Business, Innovation and Skills",UK Shared Business Services Ltd,28/03/2023,Bank Charges,Corporate Finance,,,"1,372.50",Bank Charges,
